{"text_format":"3","workbook":"xlsx","n_sheets":2,"sheets":["по нормативам отдельно","программа по зап.1 и 2 табл"],"read":"whole","date_system":"1900"}

{"sheet":"по нормативам отдельно","index":0,"n_rows":1010,"n_cols":16,"rows_kept":1010,"merged":[[0,0,1,0],[0,1,1,1],[0,2,1,2],[0,3,0,5],[0,6,0,8],[0,9,0,11],[0,12,0,14],[2,0,29,0],[2,2,6,2],[7,2,11,2],[12,2,17,2],[18,2,23,2],[24,2,29,2],[30,0,57,0],[30,2,34,2],[35,2,39,2],[40,2,45,2],[46,2,51,2],[52,2,57,2],[58,0,85,0],[58,2,62,2],[63,2,67,2],[68,2,73,2],[74,2,79,2],[80,2,85,2],[86,0,113,0],[86,2,90,2],[91,2,95,2],[96,2,101,2],[102,2,107,2],[108,2,113,2],[114,0,141,0],[114,2,118,2],[119,2,123,2],[124,2,129,2],[130,2,135,2],[136,2,141,2],[142,0,169,0],[142,2,146,2],[147,2,151,2],[152,2,157,2],[158,2,163,2],[164,2,169,2],[170,0,197,0],[170,2,174,2],[175,2,179,2],[180,2,185,2],[186,2,191,2],[192,2,197,2],[198,0,225,0],[198,2,202,2],[203,2,207,2],[208,2,213,2],[214,2,219,2],[220,2,225,2],[226,0,253,0],[226,2,230,2],[231,2,235,2],[236,2,241,2],[242,2,247,2],[248,2,253,2],[254,0,281,0],[254,2,258,2],[259,2,263,2],[264,2,269,2],[270,2,275,2],[276,2,281,2],[282,0,309,0],[282,2,286,2],[287,2,291,2],[292,2,297,2],[298,2,303,2],[304,2,309,2],[310,0,337,0],[310,2,314,2],[315,2,319,2],[320,2,325,2],[326,2,331,2],[332,2,337,2],[338,0,365,0],[338,2,342,2],[343,2,347,2],[348,2,353,2],[354,2,359,2],[360,2,365,2],[366,0,393,0],[366,2,370,2],[371,2,375,2],[376,2,381,2],[382,2,387,2],[388,2,393,2],[394,0,421,0],[394,2,398,2],[399,2,403,2],[404,2,409,2],[410,2,415,2],[416,2,421,2],[422,0,449,0],[422,2,426,2],[427,2,431,2],[432,2,437,2],[438,2,443,2],[444,2,449,2],[450,0,477,0],[450,2,454,2],[455,2,459,2],[460,2,465,2],[466,2,471,2],[472,2,477,2],[478,0,505,0],[478,2,482,2],[483,2,487,2],[488,2,493,2],[494,2,499,2],[500,2,505,2],[506,0,533,0],[506,2,510,2],[511,2,515,2],[516,2,521,2],[522,2,527,2],[528,2,533,2],[534,0,561,0],[534,2,538,2],[539,2,543,2],[544,2,549,2],[550,2,555,2],[556,2,561,2],[562,0,589,0],[562,2,566,2],[567,2,571,2],[572,2,577,2],[578,2,583,2],[584,2,589,2],[590,0,617,0],[590,2,594,2],[595,2,599,2],[600,2,605,2],[606,2,611,2],[612,2,617,2],[618,0,645,0],[618,2,622,2],[623,2,627,2],[628,2,633,2],[634,2,639,2],[640,2,645,2],[646,0,673,0],[646,2,650,2],[651,2,655,2],[656,2,661,2],[662,2,667,2],[668,2,673,2],[674,0,701,0],[674,2,678,2],[679,2,683,2],[684,2,689,2],[690,2,695,2],[696,2,701,2],[702,0,729,0],[702,2,706,2],[707,2,711,2],[712,2,717,2],[718,2,723,2],[724,2,729,2],[730,0,757,0],[730,2,734,2],[735,2,739,2],[740,2,745,2],[746,2,751,2],[752,2,757,2],[758,0,785,0],[758,2,762,2],[763,2,767,2],[768,2,773,2],[774,2,779,2],[780,2,785,2],[786,0,813,0],[786,2,790,2],[791,2,795,2],[796,2,801,2],[802,2,807,2],[808,2,813,2],[814,0,841,0],[814,2,818,2],[819,2,823,2],[824,2,829,2],[830,2,835,2],[836,2,841,2],[842,0,869,0],[842,2,846,2],[847,2,851,2],[852,2,857,2],[858,2,863,2],[864,2,869,2],[870,0,897,0],[870,2,874,2],[875,2,879,2],[880,2,885,2],[886,2,891,2],[892,2,897,2],[898,0,925,0],[898,2,902,2],[903,2,907,2],[908,2,913,2],[914,2,919,2],[920,2,925,2],[926,0,953,0],[926,2,930,2],[931,2,935,2],[936,2,941,2],[942,2,947,2],[948,2,953,2],[954,0,981,0],[954,2,958,2],[959,2,963,2],[964,2,969,2],[970,2,975,2],[976,2,981,2],[982,0,1009,0],[982,2,986,2],[987,2,991,2],[992,2,997,2],[998,2,1003,2],[1004,2,1009,2]]}
["ОУ","Наименование норматива","Ступень (возраст детей)","Кол-во обучающихся основной группы по физической культуре, приступивших к сдаче норматива",null,null,"Кол-во учащихся основной группы по физической культуре, справившихся с выполнением нормативов в полном объеме",null,null,"Кол-во учащихся основной группы по физической культуре, справившихся с выполнением нормативов не в полном объеме",null,null,"Кол-во учащихся основной группы по физической культуре, не справившихся с выполнением нормативов "]
[{"$nulls":3},"всего","М","Д","всего","М","Д","всего","М","Д","всего","М","Д"]
[22,"Челночный бег на 3х10 м (с)","6-8 лет",{"$f":"E3+F3","v":71},41,30,{"$f":"H3+I3","v":25},15,10,{"$f":"K3+L3","v":46},26,20,{"$f":"N3+O3","v":0},0,0,{"$f":"G3+J3+M3","v":71}]
[null,"или бег на 30м (с)",null,{"$f":"E4+F4","v":0},null,null,{"$f":"H4+I4","v":0},null,null,{"$f":"K4+L4","v":0},null,null,{"$f":"N4+O4","v":0},null,null,{"$f":"G4+J4+M4","v":0}]
[null,"Смешанное передвижение (1 км)",null,{"$f":"E5+F5","v":71},41,30,{"$f":"H5+I5","v":25},15,10,{"$f":"K5+L5","v":46},26,20,{"$f":"N5+O5","v":0},0,0,71]
[null,"Прыжок в длину с места толчками двумя ногами (см)",null,{"$f":"E6+F6","v":71},41,30,{"$f":"H6+I6","v":25},15,10,{"$f":"K6+L6","v":46},26,20,{"$f":"N6+O6","v":0},0,0,71]
[null,"Плавание без учета времени(м)",null,0,null,null,0,null,null,0,null,null,0,null,null,{"$f":"G7+J7+M7","v":0}]
[null,"бег на 60м (с)","9-10 лет",67,35,32,51,29,22,16,6,10,0,0,0,67]
[null,"Бег на 1 км. (мин, с)",null,67,35,32,51,29,22,16,6,10,0,null,null,67]
[null,"Прыжок в длину с разбега (см)",null,0,null,null,0,null,null,0,null,null,0,null,null,0]
[null,"Или прыжок в длину с места толчком двумя ногами (см)",null,67,35,32,51,29,22,16,6,10,0,0,0,67]
[null,"Плавание без учета времени(м)",null,0,null,null,0,null,null,0,null,null,0,null,null,0]
[null,"бег на 60м (с)","11-12 лет",58,37,21,42,25,17,16,12,4,0,0,0,58]
[null,"Бег на 1,5 км. (мин, с)",null,58,37,21,42,25,17,16,12,4,0,0,0,58]
[null,"Или на 2 км (мин,с)",null,0,null,null,0,null,null,0,null,null,0,null,null,0]
[null,"Прыжок в длину с разбега (см)",null,0,null,null,0,null,null,0,null,null,0,null,null,0]
[null,"Или прыжок в длину с места толчком двумя ногами (см)",null,58,37,21,42,25,17,16,12,4,0,0,0,58]
[null,"Плавание 50 м (мин,с)",null,0,null,null,0,null,null,0,null,null,0,null,null,0]
[null,"бег на 60м (с)","13-15 лет",65,39,26,53,31,22,12,8,4,0,0,0,65]
[null,"Бег на 2 км. (мин, с)",null,65,39,26,53,31,22,12,8,4,0,0,0,65]
[null,"Или на 3 км (мин,с) девочки нет",null,0,null,null,0,null,null,0,null,null,0,null,null,0]
[null,"Прыжок в длину с разбега (см)",null,0,null,null,0,null,null,0,null,null,0,null,null,0]
[null,"Или прыжок в длину с места толчком двумя ногами (см)",null,65,39,26,53,31,22,12,8,4,0,0,0,65]
[null,"Плавание 50 м (мин,с)",null,0,null,null,0,null,null,0,null,null,0,null,null,0]
[null,"бег на 100м (с)","16-17 лет",28,18,10,23,16,7,5,2,3,0,0,0,28]
[null,"Бег на 2 км. (мин, с)",null,28,18,10,23,16,7,5,2,3,0,0,0,28]
[null,"Или на 3 км (мин,с) девочки нет",null,0,null,null,0,null,null,0,null,null,0,null,null,0]
[null,"Прыжок в длину с разбега (см)",null,0,null,null,0,null,null,0,null,null,0,null,null,0]
[null,"Или прыжок в длину с места толчком двумя ногами (см)",null,28,18,10,23,16,7,5,2,3,0,0,0,28]
[null,"Плавание 50 м (мин,с)",null,0,null,null,0,null,null,0,null,null,0,null,null,0]
[11,"Челночный бег на 3х10 м (с)","6-8 лет",{"$f":"E31+F31","v":80},47,33,{"$f":"H31+I31","v":80},47,33,{"$f":"K31+L31","v":0},0,0,{"$f":"N31+O31","v":0},0,0,80]
[null,"или бег на 30м (с)",null,{"$f":"E32+F32","v":0},null,null,{"$f":"H32+I32","v":0},null,null,{"$f":"K32+L32","v":0},null,null,{"$f":"N32+O32","v":0},null,null,0]
[null,"Смешанное передвижение (1 км)",null,{"$f":"E33+F33","v":80},47,33,{"$f":"H33+I33","v":80},47,33,{"$f":"K33+L33","v":0},0,0,{"$f":"N33+O33","v":0},0,0,80]
[null,"Прыжок в длину с места толчками двумя ногами (см)",null,{"$f":"E34+F34","v":0},null,null,{"$f":"H34+I34","v":0},null,null,{"$f":"K34+L34","v":0},null,null,{"$f":"N34+O34","v":0},null,null,0]
[null,"Плавание без учета времени(м)",null,0,null,null,0,null,null,0,null,null,0,null,null,0]
[null,"бег на 60м (с)","9-10 лет",78,33,45,78,33,45,0,0,0,0,0,0,78]
[null,"Бег на 1 км. (мин, с)",null,78,33,45,78,33,45,0,0,0,0,0,0,78]
[null,"Прыжок в длину с разбега (см)",null,0,null,null,0,null,null,0,null,null,0,null,null,0]
[null,"Или прыжок в длину с места толчком двумя ногами (см)",null,0,null,null,0,null,null,0,null,null,0,null,null,0]
[null,"Плавание без учета времени(м)",null,0,null,null,0,null,null,0,null,null,0,null,null,0]
[null,"бег на 60м (с)","11-12 лет",76,43,33,76,43,33,0,null,0,0,0,0,76]
[null,"Бег на 1,5 км. (мин, с)",null,76,43,33,65,38,27,11,5,6,0,0,0,76]
[null,"Или на 2 км (мин,с)",null,0,null,null,0,null,null,0,null,null,0,null,null,0]
[null,"Прыжок в длину с разбега (см)",null,0,null,null,0,null,null,0,null,null,0,null,null,0]
[null,"Или прыжок в длину с места толчком двумя ногами (см)",null,0,null,null,0,null,null,0,null,null,0,null,null,0]
[null,"Плавание 50 м (мин,с)",null,0,null,null,0,null,null,0,null,null,0,null,null,0]
[null,"бег на 60м (с)","13-15 лет",56,31,25,56,31,25,0,0,0,0,0,0,56]
[null,"Бег на 2 км. (мин, с)",null,56,31,25,54,31,23,2,0,2,0,0,0,56]
[null,"Или на 3 км (мин,с) девочки нет",null,0,null,null,0,null,null,0,null,null,0,null,null,0]
[null,"Прыжок в длину с разбега (см)",null,0,null,null,0,null,null,0,null,null,0,null,null,0]
[null,"Или прыжок в длину с места толчком двумя ногами (см)",null,0,null,null,0,null,null,0,null,null,0,null,null,0]
[null,"Плавание 50 м (мин,с)",null,0,null,null,0,null,null,0,null,null,0,null,null,0]
[null,"бег на 100м (с)","16-17 лет",41,25,16,41,25,16,0,0,0,0,0,0,41]
[null,"Бег на 2 км. (мин, с)",null,41,25,16,41,25,16,0,0,0,0,0,0,41]
[null,"Или на 3 км (мин,с) девочки нет",null,0,null,null,0,null,null,0,null,null,0,null,null,0]
[null,"Прыжок в длину с разбега (см)",null,0,null,null,0,null,null,0,null,null,0,null,null,0]
[null,"Или прыжок в длину с места толчком двумя ногами (см)",null,0,null,null,0,null,null,0,null,null,0,null,null,0]
[null,"Плавание 50 м (мин,с)",null,0,null,null,0,null,null,0,null,null,0,null,null,0]
[15,"Челночный бег на 3х10 м (с)","6-8 лет",{"$f":"E59+F59","v":0},null,null,{"$f":"H59+I59","v":0},null,null,{"$f":"K59+L59","v":0},null,null,{"$f":"N59+O59","v":0},null,null,0]
[null,"или бег на 30м (с)",null,{"$f":"E60+F60","v":0},null,null,{"$f":"H60+I60","v":0},null,null,{"$f":"K60+L60","v":0},null,null,{"$f":"N60+O60","v":0},null,null,0]
[null,"Смешанное передвижение (1 км)",null,0,null,null,0,null,null,0,null,null,0,null,null,0]
[null,"Прыжок в длину с места толчками двумя ногами (см)",null,0,null,null,0,null,null,0,null,null,0,null,null,0]
[null,"Плавание без учета времени(м)",null,0,null,null,0,null,null,0,null,null,0,null,null,0]
[null,"бег на 60м (с)","9-10 лет",0,null,null,0,null,null,0,null,null,0,null,null,0]
[null,"Бег на 1 км. (мин, с)",null,0,null,null,0,null,null,0,null,null,0,null,null,0]
[null,"Прыжок в длину с разбега (см)",null,0,null,null,0,null,null,0,null,null,0,null,null,0]
[null,"Или прыжок в длину с места толчком двумя ногами (см)",null,0,null,null,0,null,null,0,null,null,0,null,null,0]
[null,"Плавание без учета времени(м)",null,0,null,null,0,null,null,0,null,null,0,null,null,{"$f":"G68+J68+M68","v":0}]
[null,"бег на 60м (с)","11-12 лет",0,null,null,0,null,null,0,null,null,0,null,null,0]
[null,"Бег на 1,5 км. (мин, с)",null,0,null,null,0,null,null,0,null,null,0,null,null,0]
[null,"Или на 2 км (мин,с)",null,0,null,null,0,null,null,0,null,null,0,null,null,0]
[null,"Прыжок в длину с разбега (см)",null,0,null,null,0,null,null,0,null,null,0,null,null,0]
[null,"Или прыжок в длину с места толчком двумя ногами (см)",null,0,null,null,0,null,null,0,null,null,0,null,null,0]
[null,"Плавание 50 м (мин,с)",null,0,null,null,0,null,null,0,null,null,0,null,null,0]
[null,"бег на 60м (с)","13-15 лет",0,null,null,0,null,null,0,null,null,0,null,null,0]
[null,"Бег на 2 км. (мин, с)",null,0,null,null,0,null,null,0,null,null,0,null,null,0]
[null,"Или на 3 км (мин,с) девочки нет",null,0,null,null,0,null,null,0,null,null,0,null,null,0]
[null,"Прыжок в длину с разбега (см)",null,0,null,null,0,null,null,0,null,null,0,null,null,0]
[null,"Или прыжок в длину с места толчком двумя ногами (см)",null,0,null,null,0,null,null,0,null,null,0,null,null,0]
[null,"Плавание 50 м (мин,с)",null,0,null,null,0,null,null,0,null,null,0,null,null,0]
[null,"бег на 100м (с)","16-17 лет",0,null,null,0,null,null,0,null,null,0,null,null,0]
[null,"Бег на 2 км. (мин, с)",null,0,null,null,0,null,null,0,null,null,0,null,null,0]
[null,"Или на 3 км (мин,с) девочки нет",null,0,null,null,0,null,null,0,null,null,0,null,null,0]
[null,"Прыжок в длину с разбега (см)",null,0,null,null,0,null,null,0,null,null,0,null,null,0]
[null,"Или прыжок в длину с места толчком двумя ногами (см)",null,0,null,null,0,null,null,0,null,null,0,null,null,0]
[null,"Плавание 50 м (мин,с)",null,0,null,null,0,null,null,0,null,null,0,null,null,0]
[20,"Челночный бег на 3х10 м (с)","6-8 лет",{"$f":"E87+F87","v":0},null,null,{"$f":"H87+I87","v":0},null,null,{"$f":"K87+L87","v":0},null,null,{"$f":"N87+O87","v":0},null,null,0]
[null,"или бег на 30м (с)",null,{"$f":"E88+F88","v":0},null,null,{"$f":"H88+I88","v":0},null,null,{"$f":"K88+L88","v":0},null,null,{"$f":"N88+O88","v":0},null,null,0]
[null,"Смешанное передвижение (1 км)",null,0,null,null,0,null,null,0,null,null,0,null,null,0]
[null,"Прыжок в длину с места толчками двумя ногами (см)",null,0,null,null,0,null,null,0,null,null,0,null,null,0]
[null,"Плавание без учета времени(м)",null,0,null,null,0,null,null,0,null,null,0,null,null,0]
[null,"бег на 60м (с)","9-10 лет",0,null,null,0,null,null,0,null,null,0,null,null,0]
[null,"Бег на 1 км. (мин, с)",null,0,null,null,0,null,null,0,null,null,0,null,null,0]
[null,"Прыжок в длину с разбега (см)",null,0,null,null,0,null,null,0,null,null,0,null,null,0]
[null,"Или прыжок в длину с места толчком двумя ногами (см)",null,0,null,null,0,null,null,0,null,null,0,null,null,0]
[null,"Плавание без учета времени(м)",null,0,null,null,0,null,null,0,null,null,0,null,null,0]
[null,"бег на 60м (с)","11-12 лет",0,null,null,0,null,null,0,null,null,0,null,null,0]
[null,"Бег на 1,5 км. (мин, с)",null,0,null,null,0,null,null,0,null,null,0,null,null,0]
[null,"Или на 2 км (мин,с)",null,0,null,null,0,null,null,0,null,null,0,null,null,0]
[null,"Прыжок в длину с разбега (см)",null,0,null,null,0,null,null,0,null,null,0,null,null,0]
[null,"Или прыжок в длину с места толчком двумя ногами (см)",null,0,null,null,0,null,null,0,null,null,0,null,null,0]
[null,"Плавание 50 м (мин,с)",null,0,null,null,0,null,null,0,null,null,0,null,null,0]
[null,"бег на 60м (с)","13-15 лет",0,null,null,0,null,null,0,null,null,0,null,null,0]
[null,"Бег на 2 км. (мин, с)",null,0,null,null,0,null,null,0,null,null,0,null,null,0]
[null,"Или на 3 км (мин,с) девочки нет",null,0,null,null,0,null,null,0,null,null,0,null,null,0]
[null,"Прыжок в длину с разбега (см)",null,0,null,null,0,null,null,0,null,null,0,null,null,0]
[null,"Или прыжок в длину с места толчком двумя ногами (см)",null,0,null,null,0,null,null,0,null,null,0,null,null,0]
[null,"Плавание 50 м (мин,с)",null,0,null,null,0,null,null,0,null,null,0,null,null,0]
[null,"бег на 100м (с)","16-17 лет",0,null,null,0,null,null,0,null,null,0,null,null,0]
[null,"Бег на 2 км. (мин, с)",null,0,null,null,0,null,null,0,null,null,0,null,null,0]
[null,"Или на 3 км (мин,с) девочки нет",null,0,null,null,0,null,null,0,null,null,0,null,null,0]
[null,"Прыжок в длину с разбега (см)",null,0,null,null,0,null,null,0,null,null,0,null,null,0]
[null,"Или прыжок в длину с места толчком двумя ногами (см)",null,0,null,null,0,null,null,0,null,null,0,null,null,0]
[null,"Плавание 50 м (мин,с)",null,0,null,null,0,null,null,0,null,null,0,null,null,0]
[8,"Челночный бег на 3х10 м (с)","6-8 лет",136,88,48,51,31,20,59,33,26,26,20,6,136]
[null,"или бег на 30м (с)",null,0,null,null,0,null,null,0,null,null,0,null,null,0]
[null,"Смешанное передвижение (1 км)",null,136,88,48,133,85,48,2,1,1,1,1,0,136]
[null,"Прыжок в длину с места толчками двумя ногами (см)",null,136,88,48,79,59,20,40,20,20,17,8,9,136]
[null,"Плавание без учета времени(м)",null,0,null,null,0,null,null,0,null,null,0,null,null,0]
[null,"бег на 60м (с)","9-10 лет",160,86,74,67,38,29,60,28,32,33,20,13,160]
[null,"Бег на 1 км. (мин, с)",null,160,86,74,89,61,28,43,15,28,28,10,18,160]
[null,"Прыжок в длину с разбега (см)",null,0,null,null,0,null,null,0,null,null,0,null,null,0]
[null,"Или прыжок в длину с места толчком двумя ногами (см)",null,160,86,74,68,41,27,60,30,30,32,15,17,160]
[null,"Плавание без учета времени(м)",null,0,null,null,0,null,null,0,null,null,0,null,null,0]
[null,"бег на 60м (с)","11-12 лет",161,83,78,51,29,22,68,31,37,42,23,19,161]
[null,"Бег на 1,5 км. (мин, с)",null,0,null,null,0,null,null,0,null,null,0,null,null,0]
[null,"Или на 2 км (мин,с)",null,161,83,78,59,28,31,58,29,29,44,26,18,161]
[null,"Прыжок в длину с разбега (см)",null,0,null,null,0,null,null,0,null,null,0,null,null,0]
[null,"Или прыжок в длину с места толчком двумя ногами (см)",null,161,83,78,72,39,33,55,23,32,34,21,13,161]
[null,"Плавание 50 м (мин,с)",null,0,null,null,0,null,null,0,null,null,0,null,null,0]
[null,"бег на 60м (с)","13-15 лет",170,90,80,61,32,29,77,45,32,32,13,19,170]
[null,"Бег на 2 км. (мин, с)",null,170,90,80,76,41,35,63,30,33,31,19,12,{"$f":"G132+J132+M132","v":170}]
[null,"Или на 3 км (мин,с) девочки нет",null,0,null,null,0,null,null,0,null,null,0,null,null,0]
[null,"Прыжок в длину с разбега (см)",null,0,null,null,0,null,null,0,null,null,0,null,null,0]
[null,"Или прыжок в длину с места толчком двумя ногами (см)",null,170,90,80,82,45,37,60,30,30,28,15,13,170]
[null,"Плавание 50 м (мин,с)",null,0,null,null,0,null,null,0,null,null,0,null,null,0]
[null,"бег на 100м (с)","16-17 лет",83,35,48,35,15,20,33,15,18,15,5,10,83]
[null,"Бег на 2 км. (мин, с)",null,83,35,48,36,22,14,31,5,26,16,8,8,83]
[null,"Или на 3 км (мин,с) девочки нет",null,0,null,null,0,null,null,0,null,null,0,null,null,0]
[null,"Прыжок в длину с разбега (см)",null,0,null,null,0,null,null,0,null,null,0,null,null,0]
[null,"Или прыжок в длину с места толчком двумя ногами (см)",null,83,35,48,61,28,33,8,4,4,14,3,11,83]
[null,"Плавание 50 м (мин,с)",null,0,null,null,0,null,null,0,null,null,0,null,null,0]
[29,"Челночный бег на 3х10 м (с)","6-8 лет",{"$f":"E143+F143","v":0},null,null,{"$f":"H143+I143","v":0},null,null,{"$f":"K143+L143","v":0},null,null,{"$f":"N143+O143","v":0},null,null,0]
[null,"или бег на 30м (с)",null,{"$f":"E144+F144","v":0},null,null,{"$f":"H144+I144","v":0},null,null,{"$f":"K144+L144","v":0},null,null,{"$f":"N144+O144","v":0},null,null,0]
[null,"Смешанное передвижение (1 км)",null,0,null,null,0,null,null,0,null,null,0,null,null,0]
[null,"Прыжок в длину с места толчками двумя ногами (см)",null,0,null,null,0,null,null,0,null,null,0,null,null,0]
[null,"Плавание без учета времени(м)",null,0,null,null,0,null,null,0,null,null,0,null,null,0]
[null,"бег на 60м (с)","9-10 лет",0,null,null,0,null,null,0,null,null,0,null,null,0]
[null,"Бег на 1 км. (мин, с)",null,0,null,null,0,null,null,0,null,null,0,null,null,0]
[null,"Прыжок в длину с разбега (см)",null,0,null,null,0,null,null,0,null,null,0,null,null,0]
[null,"Или прыжок в длину с места толчком двумя ногами (см)",null,0,null,null,0,null,null,0,null,null,0,null,null,0]
[null,"Плавание без учета времени(м)",null,0,null,null,0,null,null,0,null,null,0,null,null,0]
[null,"бег на 60м (с)","11-12 лет",0,null,null,0,null,null,0,null,null,0,null,null,0]
[null,"Бег на 1,5 км. (мин, с)",null,0,null,null,0,null,null,0,null,null,0,null,null,0]
[null,"Или на 2 км (мин,с)",null,0,null,null,0,null,null,0,null,null,0,null,null,0]
[null,"Прыжок в длину с разбега (см)",null,0,null,null,0,null,null,0,null,null,0,null,null,0]
[null,"Или прыжок в длину с места толчком двумя ногами (см)",null,0,null,null,0,null,null,0,null,null,0,null,null,0]
[null,"Плавание 50 м (мин,с)",null,0,null,null,0,null,null,0,null,null,0,null,null,0]
[null,"бег на 60м (с)","13-15 лет",0,null,null,0,null,null,0,null,null,0,null,null,0]
[null,"Бег на 2 км. (мин, с)",null,0,null,null,0,null,null,0,null,null,0,null,null,0]
[null,"Или на 3 км (мин,с) девочки нет",null,0,null,null,0,null,null,0,null,null,0,null,null,0]
[null,"Прыжок в длину с разбега (см)",null,0,null,null,0,null,null,0,null,null,0,null,null,0]
[null,"Или прыжок в длину с места толчком двумя ногами (см)",null,0,null,null,0,null,null,0,null,null,0,null,null,0]
[null,"Плавание 50 м (мин,с)",null,0,null,null,0,null,null,0,null,null,0,null,null,0]
[null,"бег на 100м (с)","16-17 лет",0,null,null,0,null,null,0,null,null,0,null,null,0]
[null,"Бег на 2 км. (мин, с)",null,0,null,null,0,null,null,0,null,null,0,null,null,0]
[null,"Или на 3 км (мин,с) девочки нет",null,0,null,null,0,null,null,0,null,null,0,null,null,0]
[null,"Прыжок в длину с разбега (см)",null,0,null,null,0,null,null,0,null,null,0,null,null,0]
[null,"Или прыжок в длину с места толчком двумя ногами (см)",null,0,null,null,0,null,null,0,null,null,0,null,null,0]
[null,"Плавание 50 м (мин,с)",null,0,null,null,0,null,null,0,null,null,0,null,null,0]
[47,"Челночный бег на 3х10 м (с)","6-8 лет",{"$f":"E171+F171","v":78},34,44,{"$f":"H171+I171","v":67},31,36,{"$f":"K171+L171","v":7},1,6,{"$f":"N171+O171","v":4},2,2,78]
[null,"или бег на 30м (с)",null,{"$f":"E172+F172","v":78},34,44,{"$f":"H172+I172","v":67},31,36,{"$f":"K172+L172","v":7},1,6,{"$f":"N172+O172","v":4},2,2,78]
[null,"Смешанное передвижение (1 км)",null,78,34,44,67,31,36,7,1,6,4,2,2,78]
[null,"Прыжок в длину с места толчками двумя ногами (см)",null,78,34,44,67,31,36,7,1,6,4,2,2,78]
[null,"Плавание без учета времени(м)",null,0,null,null,{"$f":"H175+I175","v":0},null,null,{"$f":"K175+L175","v":0},null,null,{"$f":"N175+O175","v":0},null,null,0]
[null,"бег на 60м (с)","9-10 лет",65,45,20,57,40,17,4,3,1,4,2,2,65]
[null,"Бег на 1 км. (мин, с)",null,65,45,20,{"$f":"H177+I177","v":57},40,17,{"$f":"K177+L177","v":4},3,1,{"$f":"N177+O177","v":4},2,2,65]
[null,"Прыжок в длину с разбега (см)",null,65,45,20,57,40,17,4,3,1,4,2,2,65]
[null,"Или прыжок в длину с места толчком двумя ногами (см)",null,65,45,20,57,40,17,4,3,1,4,2,2,65]
[null,"Плавание без учета времени(м)",null,0,null,null,0,null,null,0,null,null,0,null,null,0]
[null,"бег на 60м (с)","11-12 лет",77,43,34,76,43,33,1,null,1,0,null,null,77]
[null,"Бег на 1,5 км. (мин, с)",null,77,43,34,76,43,33,1,null,1,0,null,null,77]
[null,"Или на 2 км (мин,с)",null,0,null,null,0,null,null,0,null,null,0,null,null,0]
[null,"Прыжок в длину с разбега (см)",null,77,43,34,{"$f":"H184+I184","v":76},43,33,{"$f":"K184+L184","v":1},null,1,0,null,null,77]
[null,"Или прыжок в длину с места толчком двумя ногами (см)",null,77,43,34,76,43,33,1,null,1,0,null,null,77]
[null,"Плавание 50 м (мин,с)",null,0,null,null,0,null,null,0,null,null,0,null,null,0]
[null,"бег на 60м (с)","13-15 лет",98,50,48,93,48,45,5,2,3,0,null,null,98]
[null,"Бег на 2 км. (мин, с)",null,98,50,48,{"$f":"H188+I188","v":93},48,45,{"$f":"K188+L188","v":5},2,3,0,null,null,98]
[null,"Или на 3 км (мин,с) девочки нет",null,0,null,null,0,null,null,0,null,null,0,null,null,0]
[null,"Прыжок в длину с разбега (см)",null,98,50,48,{"$f":"H190+I190","v":93},48,45,{"$f":"K190+L190","v":5},2,3,0,null,null,98]
[null,"Или прыжок в длину с места толчком двумя ногами (см)",null,98,50,48,93,48,45,5,2,3,0,null,null,98]
[null,"Плавание 50 м (мин,с)",null,0,null,null,0,null,null,0,null,null,0,null,null,0]
[null,"бег на 100м (с)","16-17 лет",30,15,15,30,15,15,0,null,null,0,null,null,30]
[null,"Бег на 2 км. (мин, с)",null,30,15,15,30,15,15,0,null,null,0,null,null,30]
[null,"Или на 3 км (мин,с) девочки нет",null,0,null,null,0,null,null,0,null,null,0,null,null,0]
[null,"Прыжок в длину с разбега (см)",null,30,15,15,30,15,15,0,null,null,0,null,null,{"$f":"G196+J196+M196","v":30}]
[null,"Или прыжок в длину с места толчком двумя ногами (см)",null,30,15,15,30,15,15,0,null,null,0,null,null,30]
[null,"Плавание 50 м (мин,с)",null,0,null,null,0,null,null,0,null,null,0,null,null,0]
[58,"Челночный бег на 3х10 м (с)","6-8 лет",{"$f":"E199+F199","v":36},24,12,{"$f":"H199+I199","v":36},24,12,{"$f":"K199+L199","v":0},null,null,{"$f":"N199+O199","v":0},null,null,36]
[null,"или бег на 30м (с)",null,{"$f":"E200+F200","v":0},null,null,{"$f":"H200+I200","v":0},null,null,{"$f":"K200+L200","v":0},null,null,{"$f":"N200+O200","v":0},null,null,0]
[null,"Смешанное передвижение (1 км)",null,{"$f":"E201+F201","v":36},24,12,{"$f":"H201+I201","v":36},24,12,{"$f":"K201+L201","v":0},null,null,{"$f":"N201+O201","v":0},null,null,36]
[null,"Прыжок в длину с места толчками двумя ногами (см)",null,{"$f":"E202+F202","v":36},24,12,{"$f":"H202+I202","v":36},24,12,{"$f":"K202+L202","v":0},null,null,{"$f":"N202+O202","v":1},null,1,37]
[null,"Плавание без учета времени(м)",null,0,null,null,0,null,null,0,null,null,0,null,null,0]
[null,"бег на 60м (с)","9-10 лет",38,25,13,34,25,9,2,null,2,2,null,2,38]
[null,"Бег на 1 км. (мин, с)",null,38,25,13,34,25,9,2,null,2,2,null,2,38]
[null,"Прыжок в длину с разбега (см)",null,0,null,null,0,null,null,0,null,null,0,null,null,0]
[null,"Или прыжок в длину с места толчком двумя ногами (см)",null,38,25,13,34,25,9,2,null,2,2,null,2,38]
[null,"Плавание без учета времени(м)",null,0,null,null,0,null,null,0,null,null,0,null,null,0]
[null,"бег на 60м (с)","11-12 лет",49,32,17,45,32,13,0,null,null,4,2,2,49]
[null,"Бег на 1,5 км. (мин, с)",null,49,32,17,45,32,13,0,null,null,4,2,2,49]
[null,"Или на 2 км (мин,с)",null,49,32,17,45,32,13,0,null,null,4,2,2,49]
[null,"Прыжок в длину с разбега (см)",null,0,null,null,0,null,null,0,null,null,0,null,null,0]
[null,"Или прыжок в длину с места толчком двумя ногами (см)",null,49,32,17,49,32,17,0,null,null,4,2,2,53]
[null,"Плавание 50 м (мин,с)",null,0,null,null,0,null,null,0,null,null,0,null,null,0]
[null,"бег на 60м (с)","13-15 лет",85,50,35,72,46,26,0,null,null,13,6,7,85]
[null,"Бег на 2 км. (мин, с)",null,85,50,35,72,46,26,0,null,null,13,6,7,85]
[null,"Или на 3 км (мин,с) девочки нет",null,50,50,null,46,46,null,0,null,null,4,4,null,50]
[null,"Прыжок в длину с разбега (см)",null,0,null,null,0,null,null,0,null,null,0,null,null,0]
[null,"Или прыжок в длину с места толчком двумя ногами (см)",null,85,50,35,72,46,26,0,null,null,13,6,7,85]
[null,"Плавание 50 м (мин,с)",null,0,null,null,0,null,null,0,null,null,0,null,null,0]
[null,"бег на 100м (с)","16-17 лет",27,12,15,25,11,14,0,null,null,2,1,1,27]
[null,"Бег на 2 км. (мин, с)",null,27,12,15,25,11,14,0,null,null,2,1,1,27]
[null,"Или на 3 км (мин,с) девочки нет",null,12,12,null,11,11,null,0,null,null,1,1,null,12]
[null,"Прыжок в длину с разбега (см)",null,0,null,null,0,null,null,0,null,null,0,null,null,0]
[null,"Или прыжок в длину с места толчком двумя ногами (см)",null,27,12,15,25,11,14,0,null,null,2,1,1,27]
[null,"Плавание 50 м (мин,с)",null,0,null,null,0,null,null,0,null,null,0,null,null,0]
[72,"Челночный бег на 3х10 м (с)","6-8 лет",19,5,14,19,5,14,0,0,0,0,0,0,19]
[null,"или бег на 30м (с)",null,{"$f":"E228+F228","v":0},null,null,{"$f":"H228+I228","v":0},null,null,{"$f":"K228+L228","v":0},null,null,{"$f":"N228+O228","v":0},null,null,0]
[null,"Смешанное передвижение (1 км)",null,19,5,14,19,5,14,0,0,0,0,0,0,19]
[null,"Прыжок в длину с места толчками двумя ногами (см)",null,19,5,14,19,5,14,0,0,0,0,0,0,19]
[null,"Плавание без учета времени(м)",null,0,null,null,0,null,null,0,null,null,0,null,null,0]
[null,"бег на 60м (с)","9-10 лет",10,4,6,10,4,6,0,0,0,0,0,0,10]
[null,"Бег на 1 км. (мин, с)",null,10,4,6,10,4,6,0,0,0,0,0,0,10]
[null,"Прыжок в длину с разбега (см)",null,0,null,null,0,null,null,0,null,null,0,null,null,0]
[null,"Или прыжок в длину с места толчком двумя ногами (см)",null,10,4,6,10,4,6,0,0,0,0,0,0,10]
[null,"Плавание без учета времени(м)",null,0,null,null,0,null,null,0,null,null,0,null,null,0]
[null,"бег на 60м (с)","11-12 лет",9,5,4,9,5,4,0,0,0,0,0,0,9]
[null,"Бег на 1,5 км. (мин, с)",null,9,5,4,9,5,4,0,0,0,0,0,0,9]
[null,"Или на 2 км (мин,с)",null,0,null,null,0,null,null,0,null,null,0,null,null,0]
[null,"Прыжок в длину с разбега (см)",null,0,null,null,0,null,null,0,null,null,0,null,null,0]
[null,"Или прыжок в длину с места толчком двумя ногами (см)",null,9,5,4,9,5,4,0,0,0,0,0,0,9]
[null,"Плавание 50 м (мин,с)",null,0,null,null,0,null,null,0,null,null,0,null,null,0]
[null,"бег на 60м (с)","13-15 лет",17,6,11,17,6,11,0,0,0,0,0,0,17]
[null,"Бег на 2 км. (мин, с)",null,17,6,11,17,6,11,0,0,0,0,0,0,17]
[null,"Или на 3 км (мин,с) девочки нет",null,0,null,null,0,null,null,0,null,null,0,null,null,0]
[null,"Прыжок в длину с разбега (см)",null,0,null,null,0,null,null,0,null,null,0,null,null,0]
[null,"Или прыжок в длину с места толчком двумя ногами (см)",null,17,6,11,17,6,11,0,0,0,0,0,0,17]
[null,"Плавание 50 м (мин,с)",null,0,null,null,0,null,null,0,null,null,0,null,null,0]
[null,"бег на 100м (с)","16-17 лет",4,0,4,4,0,4,0,0,0,0,0,0,4]
[null,"Бег на 2 км. (мин, с)",null,4,0,4,4,0,4,0,0,0,0,0,0,4]
[null,"Или на 3 км (мин,с) девочки нет",null,0,null,null,0,null,null,0,null,null,0,null,null,0]
[null,"Прыжок в длину с разбега (см)",null,0,null,null,0,null,null,0,null,null,0,null,null,0]
[null,"Или прыжок в длину с места толчком двумя ногами (см)",null,4,0,4,4,0,4,0,0,0,0,0,0,4]
[null,"Плавание 50 м (мин,с)",null,0,null,null,0,null,null,0,null,null,0,null,null,0]
[79,"Челночный бег на 3х10 м (с)","6-8 лет",{"$f":"E255+F255","v":0},null,null,{"$f":"H255+I255","v":0},null,null,{"$f":"K255+L255","v":0},null,null,{"$f":"N255+O255","v":0},null,null,0]
[null,"или бег на 30м (с)",null,{"$f":"E256+F256","v":0},null,null,{"$f":"H256+I256","v":0},null,null,{"$f":"K256+L256","v":0},null,null,{"$f":"N256+O256","v":0},null,null,0]
[null,"Смешанное передвижение (1 км)",null,0,null,null,0,null,null,0,null,null,0,null,null,0]
[null,"Прыжок в длину с места толчками двумя ногами (см)",null,0,null,null,0,null,null,0,null,null,0,null,null,0]
[null,"Плавание без учета времени(м)",null,0,null,null,0,null,null,0,null,null,0,null,null,0]
[null,"бег на 60м (с)","9-10 лет",0,null,null,0,null,null,0,null,null,0,null,null,{"$f":"G260+J260+M260","v":0}]
[null,"Бег на 1 км. (мин, с)",null,0,null,null,0,null,null,0,null,null,0,null,null,0]
[null,"Прыжок в длину с разбега (см)",null,0,null,null,0,null,null,0,null,null,0,null,null,0]
[null,"Или прыжок в длину с места толчком двумя ногами (см)",null,0,null,null,0,null,null,0,null,null,0,null,null,0]
[null,"Плавание без учета времени(м)",null,0,null,null,0,null,null,0,null,null,0,null,null,0]
[null,"бег на 60м (с)","11-12 лет",0,null,null,0,null,null,0,null,null,0,null,null,0]
[null,"Бег на 1,5 км. (мин, с)",null,0,null,null,0,null,null,0,null,null,0,null,null,0]
[null,"Или на 2 км (мин,с)",null,0,null,null,0,null,null,0,null,null,0,null,null,0]
[null,"Прыжок в длину с разбега (см)",null,0,null,null,0,null,null,0,null,null,0,null,null,0]
[null,"Или прыжок в длину с места толчком двумя ногами (см)",null,0,null,null,0,null,null,0,null,null,0,null,null,0]
[null,"Плавание 50 м (мин,с)",null,0,null,null,0,null,null,0,null,null,0,null,null,0]
[null,"бег на 60м (с)","13-15 лет",0,null,null,0,null,null,0,null,null,0,null,null,0]
[null,"Бег на 2 км. (мин, с)",null,0,null,null,0,null,null,0,null,null,0,null,null,0]
[null,"Или на 3 км (мин,с) девочки нет",null,0,null,null,0,null,null,0,null,null,0,null,null,0]
[null,"Прыжок в длину с разбега (см)",null,0,null,null,0,null,null,0,null,null,0,null,null,0]
[null,"Или прыжок в длину с места толчком двумя ногами (см)",null,0,null,null,0,null,null,0,null,null,0,null,null,0]
[null,"Плавание 50 м (мин,с)",null,0,null,null,0,null,null,0,null,null,0,null,null,0]
[null,"бег на 100м (с)","16-17 лет",0,null,null,0,null,null,0,null,null,0,null,null,0]
[null,"Бег на 2 км. (мин, с)",null,0,null,null,0,null,null,0,null,null,0,null,null,0]
[null,"Или на 3 км (мин,с) девочки нет",null,0,null,null,0,null,null,0,null,null,0,null,null,0]
[null,"Прыжок в длину с разбега (см)",null,0,null,null,0,null,null,0,null,null,0,null,null,0]
[null,"Или прыжок в длину с места толчком двумя ногами (см)",null,0,null,null,0,null,null,0,null,null,0,null,null,0]
[null,"Плавание 50 м (мин,с)",null,0,null,null,0,null,null,0,null,null,0,null,null,0]
[84,"Челночный бег на 3х10 м (с)","6-8 лет",{"$f":"E283+F283","v":0},null,null,{"$f":"H283+I283","v":0},null,null,{"$f":"K283+L283","v":0},null,null,{"$f":"N283+O283","v":0},null,null,0]
[null,"или бег на 30м (с)",null,{"$f":"E284+F284","v":0},null,null,{"$f":"H284+I284","v":0},null,null,{"$f":"K284+L284","v":0},null,null,{"$f":"N284+O284","v":0},null,null,0]
[null,"Смешанное передвижение (1 км)",null,0,null,null,0,null,null,0,null,null,0,null,null,0]
[null,"Прыжок в длину с места толчками двумя ногами (см)",null,0,null,null,0,null,null,0,null,null,0,null,null,0]
[null,"Плавание без учета времени(м)",null,0,null,null,0,null,null,0,null,null,0,null,null,0]
[null,"бег на 60м (с)","9-10 лет",0,null,null,0,null,null,0,null,null,0,null,null,0]
[null,"Бег на 1 км. (мин, с)",null,0,null,null,0,null,null,0,null,null,0,null,null,0]
[null,"Прыжок в длину с разбега (см)",null,0,null,null,0,null,null,0,null,null,0,null,null,0]
[null,"Или прыжок в длину с места толчком двумя ногами (см)",null,0,null,null,0,null,null,0,null,null,0,null,null,0]
[null,"Плавание без учета времени(м)",null,0,null,null,0,null,null,0,null,null,0,null,null,0]
[null,"бег на 60м (с)","11-12 лет",0,null,null,0,null,null,0,null,null,0,null,null,0]
[null,"Бег на 1,5 км. (мин, с)",null,0,null,null,0,null,null,0,null,null,0,null,null,0]
[null,"Или на 2 км (мин,с)",null,0,null,null,0,null,null,0,null,null,0,null,null,0]
[null,"Прыжок в длину с разбега (см)",null,0,null,null,0,null,null,0,null,null,0,null,null,0]
[null,"Или прыжок в длину с места толчком двумя ногами (см)",null,0,null,null,0,null,null,0,null,null,0,null,null,0]
[null,"Плавание 50 м (мин,с)",null,0,null,null,0,null,null,0,null,null,0,null,null,0]
[null,"бег на 60м (с)","13-15 лет",0,null,null,0,null,null,0,null,null,0,null,null,0]
[null,"Бег на 2 км. (мин, с)",null,0,null,null,0,null,null,0,null,null,0,null,null,0]
[null,"Или на 3 км (мин,с) девочки нет",null,0,null,null,0,null,null,0,null,null,0,null,null,0]
[null,"Прыжок в длину с разбега (см)",null,0,null,null,0,null,null,0,null,null,0,null,null,0]
[null,"Или прыжок в длину с места толчком двумя ногами (см)",null,0,null,null,0,null,null,0,null,null,0,null,null,0]
[null,"Плавание 50 м (мин,с)",null,0,null,null,0,null,null,0,null,null,0,null,null,0]
[null,"бег на 100м (с)","16-17 лет",0,null,null,0,null,null,0,null,null,0,null,null,0]
[null,"Бег на 2 км. (мин, с)",null,0,null,null,0,null,null,0,null,null,0,null,null,0]
[null,"Или на 3 км (мин,с) девочки нет",null,0,null,null,0,null,null,0,null,null,0,null,null,0]
[null,"Прыжок в длину с разбега (см)",null,0,null,null,0,null,null,0,null,null,0,null,null,0]
[null,"Или прыжок в длину с места толчком двумя ногами (см)",null,0,null,null,0,null,null,0,null,null,0,null,null,0]
[null,"Плавание 50 м (мин,с)",null,0,null,null,0,null,null,0,null,null,0,null,null,0]
[86,"Челночный бег на 3х10 м (с)","6-8 лет",{"$f":"E311+F311","v":0},null,null,{"$f":"H311+I311","v":0},null,null,{"$f":"K311+L311","v":0},null,null,{"$f":"N311+O311","v":0},null,null,0]
[null,"или бег на 30м (с)",null,{"$f":"E312+F312","v":0},null,null,{"$f":"H312+I312","v":0},null,null,{"$f":"K312+L312","v":0},null,null,{"$f":"N312+O312","v":0},null,null,0]
[null,"Смешанное передвижение (1 км)",null,0,null,null,0,null,null,0,null,null,0,null,null,0]
[null,"Прыжок в длину с места толчками двумя ногами (см)",null,0,null,null,0,null,null,0,null,null,0,null,null,0]
[null,"Плавание без учета времени(м)",null,0,null,null,0,null,null,0,null,null,0,null,null,0]
[null,"бег на 60м (с)","9-10 лет",0,null,null,0,null,null,0,null,null,0,null,null,0]
[null,"Бег на 1 км. (мин, с)",null,0,null,null,0,null,null,0,null,null,0,null,null,0]
[null,"Прыжок в длину с разбега (см)",null,0,null,null,0,null,null,0,null,null,0,null,null,0]
[null,"Или прыжок в длину с места толчком двумя ногами (см)",null,0,null,null,0,null,null,0,null,null,0,null,null,0]
[null,"Плавание без учета времени(м)",null,0,null,null,0,null,null,0,null,null,0,null,null,0]
[null,"бег на 60м (с)","11-12 лет",0,null,null,0,null,null,0,null,null,0,null,null,0]
[null,"Бег на 1,5 км. (мин, с)",null,0,null,null,0,null,null,0,null,null,0,null,null,0]
[null,"Или на 2 км (мин,с)",null,0,null,null,0,null,null,0,null,null,0,null,null,0]
[null,"Прыжок в длину с разбега (см)",null,0,null,null,0,null,null,0,null,null,0,null,null,{"$f":"G324+J324+M324","v":0}]
[null,"Или прыжок в длину с места толчком двумя ногами (см)",null,0,null,null,0,null,null,0,null,null,0,null,null,0]
[null,"Плавание 50 м (мин,с)",null,0,null,null,0,null,null,0,null,null,0,null,null,0]
[null,"бег на 60м (с)","13-15 лет",0,null,null,0,null,null,0,null,null,0,null,null,0]
[null,"Бег на 2 км. (мин, с)",null,0,null,null,0,null,null,0,null,null,0,null,null,0]
[null,"Или на 3 км (мин,с) девочки нет",null,0,null,null,0,null,null,0,null,null,0,null,null,0]
[null,"Прыжок в длину с разбега (см)",null,0,null,null,0,null,null,0,null,null,0,null,null,0]
[null,"Или прыжок в длину с места толчком двумя ногами (см)",null,0,null,null,0,null,null,0,null,null,0,null,null,0]
[null,"Плавание 50 м (мин,с)",null,0,null,null,0,null,null,0,null,null,0,null,null,0]
[null,"бег на 100м (с)","16-17 лет",0,null,null,0,null,null,0,null,null,0,null,null,0]
[null,"Бег на 2 км. (мин, с)",null,0,null,null,0,null,null,0,null,null,0,null,null,0]
[null,"Или на 3 км (мин,с) девочки нет",null,0,null,null,0,null,null,0,null,null,0,null,null,0]
[null,"Прыжок в длину с разбега (см)",null,0,null,null,0,null,null,0,null,null,0,null,null,0]
[null,"Или прыжок в длину с места толчком двумя ногами (см)",null,0,null,null,0,null,null,0,null,null,0,null,null,0]
[null,"Плавание 50 м (мин,с)",null,0,null,null,0,null,null,0,null,null,0,null,null,0]
[90,"Челночный бег на 3х10 м (с)","6-8 лет",{"$f":"E339+F339","v":0},null,null,{"$f":"H339+I339","v":0},null,null,{"$f":"K339+L339","v":0},null,null,{"$f":"N339+O339","v":0},null,null,0]
[null,"или бег на 30м (с)",null,{"$f":"E340+F340","v":0},null,null,{"$f":"H340+I340","v":0},null,null,{"$f":"K340+L340","v":0},null,null,{"$f":"N340+O340","v":0},null,null,0]
[null,"Смешанное передвижение (1 км)",null,0,null,null,0,null,null,0,null,null,0,null,null,0]
[null,"Прыжок в длину с места толчками двумя ногами (см)",null,0,null,null,0,null,null,0,null,null,0,null,null,0]
[null,"Плавание без учета времени(м)",null,0,null,null,0,null,null,0,null,null,0,null,null,0]
[null,"бег на 60м (с)","9-10 лет",0,null,null,0,null,null,0,null,null,0,null,null,0]
[null,"Бег на 1 км. (мин, с)",null,0,null,null,0,null,null,0,null,null,0,null,null,0]
[null,"Прыжок в длину с разбега (см)",null,0,null,null,0,null,null,0,null,null,0,null,null,0]
[null,"Или прыжок в длину с места толчком двумя ногами (см)",null,0,null,null,0,null,null,0,null,null,0,null,null,0]
[null,"Плавание без учета времени(м)",null,0,null,null,0,null,null,0,null,null,0,null,null,0]
[null,"бег на 60м (с)","11-12 лет",0,null,null,0,null,null,0,null,null,0,null,null,0]
[null,"Бег на 1,5 км. (мин, с)",null,0,null,null,0,null,null,0,null,null,0,null,null,0]
[null,"Или на 2 км (мин,с)",null,0,null,null,0,null,null,0,null,null,0,null,null,0]
[null,"Прыжок в длину с разбега (см)",null,0,null,null,0,null,null,0,null,null,0,null,null,0]
[null,"Или прыжок в длину с места толчком двумя ногами (см)",null,0,null,null,0,null,null,0,null,null,0,null,null,0]
[null,"Плавание 50 м (мин,с)",null,0,null,null,0,null,null,0,null,null,0,null,null,0]
[null,"бег на 60м (с)","13-15 лет",0,null,null,0,null,null,0,null,null,0,null,null,0]
[null,"Бег на 2 км. (мин, с)",null,0,null,null,0,null,null,0,null,null,0,null,null,0]
[null,"Или на 3 км (мин,с) девочки нет",null,0,null,null,0,null,null,0,null,null,0,null,null,0]
[null,"Прыжок в длину с разбега (см)",null,0,null,null,0,null,null,0,null,null,0,null,null,0]
[null,"Или прыжок в длину с места толчком двумя ногами (см)",null,0,null,null,0,null,null,0,null,null,0,null,null,0]
[null,"Плавание 50 м (мин,с)",null,0,null,null,0,null,null,0,null,null,0,null,null,0]
[null,"бег на 100м (с)","16-17 лет",0,null,null,0,null,null,0,null,null,0,null,null,0]
[null,"Бег на 2 км. (мин, с)",null,0,null,null,0,null,null,0,null,null,0,null,null,0]
[null,"Или на 3 км (мин,с) девочки нет",null,0,null,null,0,null,null,0,null,null,0,null,null,0]
[null,"Прыжок в длину с разбега (см)",null,0,null,null,0,null,null,0,null,null,0,null,null,0]
[null,"Или прыжок в длину с места толчком двумя ногами (см)",null,0,null,null,0,null,null,0,null,null,0,null,null,0]
[null,"Плавание 50 м (мин,с)",null,0,null,null,0,null,null,0,null,null,0,null,null,0]
[93,"Челночный бег на 3х10 м (с)","6-8 лет",{"$f":"E367+F367","v":0},null,null,{"$f":"H367+I367","v":0},null,null,{"$f":"K367+L367","v":0},null,null,{"$f":"N367+O367","v":0},null,null,0]
[null,"или бег на 30м (с)",null,{"$f":"E368+F368","v":0},null,null,{"$f":"H368+I368","v":0},null,null,{"$f":"K368+L368","v":0},null,null,{"$f":"N368+O368","v":0},null,null,0]
[null,"Смешанное передвижение (1 км)",null,0,null,null,0,null,null,0,null,null,0,null,null,0]
[null,"Прыжок в длину с места толчками двумя ногами (см)",null,0,null,null,0,null,null,0,null,null,0,null,null,0]
[null,"Плавание без учета времени(м)",null,0,null,null,0,null,null,0,null,null,0,null,null,0]
[null,"бег на 60м (с)","9-10 лет",0,null,null,0,null,null,0,null,null,0,null,null,0]
[null,"Бег на 1 км. (мин, с)",null,0,null,null,0,null,null,0,null,null,0,null,null,0]
[null,"Прыжок в длину с разбега (см)",null,0,null,null,0,null,null,0,null,null,0,null,null,0]
[null,"Или прыжок в длину с места толчком двумя ногами (см)",null,0,null,null,0,null,null,0,null,null,0,null,null,0]
[null,"Плавание без учета времени(м)",null,0,null,null,0,null,null,0,null,null,0,null,null,0]
[null,"бег на 60м (с)","11-12 лет",0,null,null,0,null,null,0,null,null,0,null,null,0]
[null,"Бег на 1,5 км. (мин, с)",null,0,null,null,0,null,null,0,null,null,0,null,null,0]
[null,"Или на 2 км (мин,с)",null,0,null,null,0,null,null,0,null,null,0,null,null,0]
[null,"Прыжок в длину с разбега (см)",null,0,null,null,0,null,null,0,null,null,0,null,null,0]
[null,"Или прыжок в длину с места толчком двумя ногами (см)",null,0,null,null,0,null,null,0,null,null,0,null,null,0]
[null,"Плавание 50 м (мин,с)",null,0,null,null,0,null,null,0,null,null,0,null,null,0]
[null,"бег на 60м (с)","13-15 лет",0,null,null,0,null,null,0,null,null,0,null,null,0]
[null,"Бег на 2 км. (мин, с)",null,0,null,null,0,null,null,0,null,null,0,null,null,0]
[null,"Или на 3 км (мин,с) девочки нет",null,0,null,null,0,null,null,0,null,null,0,null,null,0]
[null,"Прыжок в длину с разбега (см)",null,0,null,null,0,null,null,0,null,null,0,null,null,0]
[null,"Или прыжок в длину с места толчком двумя ногами (см)",null,0,null,null,0,null,null,0,null,null,0,null,null,0]
[null,"Плавание 50 м (мин,с)",null,0,null,null,0,null,null,0,null,null,0,null,null,{"$f":"G388+J388+M388","v":0}]
[null,"бег на 100м (с)","16-17 лет",0,null,null,0,null,null,0,null,null,0,null,null,0]
[null,"Бег на 2 км. (мин, с)",null,0,null,null,0,null,null,0,null,null,0,null,null,0]
[null,"Или на 3 км (мин,с) девочки нет",null,0,null,null,0,null,null,0,null,null,0,null,null,0]
[null,"Прыжок в длину с разбега (см)",null,0,null,null,0,null,null,0,null,null,0,null,null,0]
[null,"Или прыжок в длину с места толчком двумя ногами (см)",null,0,null,null,0,null,null,0,null,null,0,null,null,0]
[null,"Плавание 50 м (мин,с)",null,0,null,null,0,null,null,0,null,null,0,null,null,0]
[101,"Челночный бег на 3х10 м (с)","6-8 лет",117,54,63,111,52,59,6,2,4,0,0,0,117]
[null,"или бег на 30м (с)",null,117,54,63,43,23,20,74,31,43,0,0,0,117]
[null,"Смешанное передвижение (1 км)",null,0,null,null,0,null,null,0,null,null,0,null,null,0]
[null,"Прыжок в длину с места толчками двумя ногами (см)",null,117,54,63,112,52,60,5,2,3,0,0,0,117]
[null,"Плавание без учета времени(м)",null,0,null,null,0,null,null,0,null,null,0,null,null,0]
[null,"бег на 60м (с)","9-10 лет",119,67,52,109,60,49,10,7,3,0,null,null,119]
[null,"Бег на 1 км. (мин, с)",null,119,67,52,107,59,48,10,7,3,2,1,1,119]
[null,"Прыжок в длину с разбега (см)",null,0,null,null,0,null,null,0,null,null,0,null,null,0]
[null,"Или прыжок в длину с места толчком двумя ногами (см)",null,119,67,52,114,64,50,5,3,2,0,0,0,119]
[null,"Плавание без учета времени(м)",null,0,null,null,0,null,null,0,null,null,0,null,null,0]
[null,"бег на 60м (с)","11-12 лет",96,50,46,96,50,46,0,0,0,0,0,0,96]
[null,"Бег на 1,5 км. (мин, с)",null,96,50,46,83,44,39,6,4,2,7,2,5,96]
[null,"Или на 2 км (мин,с)",null,0,null,null,0,null,null,0,null,null,0,null,null,0]
[null,"Прыжок в длину с разбега (см)",null,0,null,null,0,null,null,0,null,null,0,null,null,0]
[null,"Или прыжок в длину с места толчком двумя ногами (см)",null,96,50,46,96,50,46,0,0,0,0,0,0,96]
[null,"Плавание 50 м (мин,с)",null,0,null,null,0,null,null,0,null,null,0,null,null,0]
[null,"бег на 60м (с)","13-15 лет",117,63,54,115,62,53,2,1,1,0,0,0,117]
[null,"Бег на 2 км. (мин, с)",null,117,63,54,102,54,48,9,7,2,6,2,4,117]
[null,"Или на 3 км (мин,с) девочки нет",null,0,null,null,0,null,null,0,null,null,0,null,null,0]
[null,"Прыжок в длину с разбега (см)",null,0,null,null,0,null,null,0,null,null,0,null,null,0]
[null,"Или прыжок в длину с места толчком двумя ногами (см)",null,117,63,54,117,63,54,0,0,0,0,0,0,117]
[null,"Плавание 50 м (мин,с)",null,0,null,null,0,null,null,0,null,null,0,null,null,0]
[null,"бег на 100м (с)","16-17 лет",45,25,20,43,25,18,2,0,2,0,0,0,45]
[null,"Бег на 2 км. (мин, с)",null,45,25,20,37,21,16,6,4,2,2,0,2,45]
[null,"Или на 3 км (мин,с) девочки нет",null,0,null,null,0,null,null,0,null,null,0,null,null,0]
[null,"Прыжок в длину с разбега (см)",null,0,null,null,0,null,null,0,null,null,0,null,null,0]
[null,"Или прыжок в длину с места толчком двумя ногами (см)",null,45,25,20,41,23,18,4,2,2,0,0,0,45]
[null,"Плавание 50 м (мин,с)",null,0,null,null,0,null,null,0,null,null,0,null,null,0]
[108,"Челночный бег на 3х10 м (с)","6-8 лет",{"$f":"E423+F423","v":0},null,null,{"$f":"H423+I423","v":0},null,null,0,null,null,0,null,null,0]
[null,"или бег на 30м (с)",null,{"$f":"E424+F424","v":0},null,null,{"$f":"H424+I424","v":0},null,null,0,null,null,0,null,null,0]
[null,"Смешанное передвижение (1 км)",null,0,null,null,0,null,null,0,null,null,0,null,null,0]
[null,"Прыжок в длину с места толчками двумя ногами (см)",null,0,null,null,0,null,null,0,null,null,0,null,null,0]
[null,"Плавание без учета времени(м)",null,0,null,null,0,null,null,0,null,null,0,null,null,0]
[null,"бег на 60м (с)","9-10 лет",0,null,null,0,null,null,0,null,null,0,null,null,0]
[null,"Бег на 1 км. (мин, с)",null,0,null,null,0,null,null,0,null,null,0,null,null,0]
[null,"Прыжок в длину с разбега (см)",null,0,null,null,0,null,null,0,null,null,0,null,null,0]
[null,"Или прыжок в длину с места толчком двумя ногами (см)",null,0,null,null,0,null,null,0,null,null,0,null,null,0]
[null,"Плавание без учета времени(м)",null,0,null,null,0,null,null,{"$f":"K432+L432","v":0},null,null,{"$f":"N432+O432","v":0},null,null,0]
[null,"бег на 60м (с)","11-12 лет",0,null,null,0,null,null,0,null,null,0,null,null,0]
[null,"Бег на 1,5 км. (мин, с)",null,0,null,null,0,null,null,0,null,null,0,null,null,0]
[null,"Или на 2 км (мин,с)",null,0,null,null,0,null,null,0,null,null,0,null,null,0]
[null,"Прыжок в длину с разбега (см)",null,0,null,null,0,null,null,0,null,null,0,null,null,0]
[null,"Или прыжок в длину с места толчком двумя ногами (см)",null,0,null,null,0,null,null,0,null,null,0,null,null,0]
[null,"Плавание 50 м (мин,с)",null,0,null,null,0,null,null,{"$f":"K438+L438","v":0},null,null,0,null,null,0]
[null,"бег на 60м (с)","13-15 лет",0,null,null,0,null,null,0,null,null,0,null,null,0]
[null,"Бег на 2 км. (мин, с)",null,0,null,null,0,null,null,0,null,null,0,null,null,0]
[null,"Или на 3 км (мин,с) девочки нет",null,0,null,null,0,null,null,0,null,null,0,null,null,0]
[null,"Прыжок в длину с разбега (см)",null,0,null,null,0,null,null,0,null,null,0,null,null,0]
[null,"Или прыжок в длину с места толчком двумя ногами (см)",null,0,null,null,0,null,null,0,null,null,0,null,null,0]
[null,"Плавание 50 м (мин,с)",null,0,null,null,0,null,null,0,null,null,0,null,null,0]
[null,"бег на 100м (с)","16-17 лет",0,null,null,0,null,null,0,null,null,0,null,null,0]
[null,"Бег на 2 км. (мин, с)",null,0,null,null,0,null,null,0,null,null,0,null,null,0]
[null,"Или на 3 км (мин,с) девочки нет",null,0,null,null,0,null,null,0,null,null,0,null,null,0]
[null,"Прыжок в длину с разбега (см)",null,0,null,null,0,null,null,0,null,null,0,null,null,0]
[null,"Или прыжок в длину с места толчком двумя ногами (см)",null,0,null,null,0,null,null,0,null,null,0,null,null,0]
[null,"Плавание 50 м (мин,с)",null,0,null,null,0,null,null,0,null,null,0,null,null,0]
[110,"Челночный бег на 3х10 м (с)","6-8 лет",{"$f":"E451+F451","v":0},null,null,{"$f":"H451+I451","v":0},null,null,{"$f":"K451+L451","v":0},null,null,0,null,null,0]
[null,"или бег на 30м (с)",null,{"$f":"E452+F452","v":0},null,null,{"$f":"H452+I452","v":0},null,null,{"$f":"K452+L452","v":0},null,null,0,null,null,{"$f":"G452+J452+M452","v":0}]
[null,"Смешанное передвижение (1 км)",null,0,null,null,0,null,null,0,null,null,0,null,null,0]
[null,"Прыжок в длину с места толчками двумя ногами (см)",null,0,null,null,0,null,null,0,null,null,0,null,null,0]
[null,"Плавание без учета времени(м)",null,0,null,null,0,null,null,0,null,null,0,null,null,0]
[null,"бег на 60м (с)","9-10 лет",0,null,null,0,null,null,0,null,null,0,null,null,0]
[null,"Бег на 1 км. (мин, с)",null,0,null,null,0,null,null,0,null,null,0,null,null,0]
[null,"Прыжок в длину с разбега (см)",null,0,null,null,0,null,null,0,null,null,0,null,null,0]
[null,"Или прыжок в длину с места толчком двумя ногами (см)",null,0,null,null,0,null,null,0,null,null,0,null,null,0]
[null,"Плавание без учета времени(м)",null,0,null,null,0,null,null,0,null,null,0,null,null,0]
[null,"бег на 60м (с)","11-12 лет",0,null,null,0,null,null,0,null,null,0,null,null,0]
[null,"Бег на 1,5 км. (мин, с)",null,0,null,null,0,null,null,0,null,null,0,null,null,0]
[null,"Или на 2 км (мин,с)",null,0,null,null,0,null,null,0,null,null,0,null,null,0]
[null,"Прыжок в длину с разбега (см)",null,0,null,null,0,null,null,0,null,null,0,null,null,0]
[null,"Или прыжок в длину с места толчком двумя ногами (см)",null,0,null,null,0,null,null,0,null,null,0,null,null,0]
[null,"Плавание 50 м (мин,с)",null,0,null,null,0,null,null,0,null,null,0,null,null,0]
[null,"бег на 60м (с)","13-15 лет",0,null,null,0,null,null,0,null,null,0,null,null,0]
[null,"Бег на 2 км. (мин, с)",null,0,null,null,0,null,null,0,null,null,0,null,null,0]
[null,"Или на 3 км (мин,с) девочки нет",null,0,null,null,0,null,null,0,null,null,0,null,null,0]
[null,"Прыжок в длину с разбега (см)",null,0,null,null,0,null,null,0,null,null,0,null,null,0]
[null,"Или прыжок в длину с места толчком двумя ногами (см)",null,0,null,null,0,null,null,0,null,null,0,null,null,0]
[null,"Плавание 50 м (мин,с)",null,0,null,null,0,null,null,0,null,null,0,null,null,0]
[null,"бег на 100м (с)","16-17 лет",0,null,null,0,null,null,0,null,null,0,null,null,0]
[null,"Бег на 2 км. (мин, с)",null,0,null,null,0,null,null,0,null,null,0,null,null,0]
[null,"Или на 3 км (мин,с) девочки нет",null,0,null,null,0,null,null,0,null,null,0,null,null,0]
[null,"Прыжок в длину с разбега (см)",null,0,null,null,0,null,null,0,null,null,0,null,null,0]
[null,"Или прыжок в длину с места толчком двумя ногами (см)",null,0,null,null,0,null,null,0,null,null,0,null,null,0]
[null,"Плавание 50 м (мин,с)",null,0,null,null,0,null,null,0,null,null,{"$f":"N478+O478","v":0},null,null,0]
[111,"Челночный бег на 3х10 м (с)","6-8 лет",{"$f":"E479+F479","v":0},null,null,{"$f":"H479+I479","v":0},null,null,{"$f":"K479+L479","v":0},null,null,{"$f":"N479+O479","v":0},null,null,0]
[null,"или бег на 30м (с)",null,{"$f":"E480+F480","v":0},null,null,{"$f":"H480+I480","v":0},null,null,{"$f":"K480+L480","v":0},null,null,{"$f":"N480+O480","v":0},null,null,0]
[null,"Смешанное передвижение (1 км)",null,0,null,null,0,null,null,0,null,null,0,null,null,0]
[null,"Прыжок в длину с места толчками двумя ногами (см)",null,0,null,null,0,null,null,0,null,null,0,null,null,0]
[null,"Плавание без учета времени(м)",null,0,null,null,0,null,null,0,null,null,0,null,null,0]
[null,"бег на 60м (с)","9-10 лет",0,null,null,0,null,null,0,null,null,0,null,null,0]
[null,"Бег на 1 км. (мин, с)",null,0,null,null,0,null,null,0,null,null,0,null,null,0]
[null,"Прыжок в длину с разбега (см)",null,0,null,null,0,null,null,0,null,null,0,null,null,0]
[null,"Или прыжок в длину с места толчком двумя ногами (см)",null,0,null,null,0,null,null,0,null,null,0,null,null,0]
[null,"Плавание без учета времени(м)",null,0,null,null,0,null,null,0,null,null,0,null,null,0]
[null,"бег на 60м (с)","11-12 лет",0,null,null,0,null,null,0,null,null,0,null,null,0]
[null,"Бег на 1,5 км. (мин, с)",null,0,null,null,0,null,null,0,null,null,0,null,null,0]
[null,"Или на 2 км (мин,с)",null,0,null,null,0,null,null,0,null,null,0,null,null,0]
[null,"Прыжок в длину с разбега (см)",null,0,null,null,0,null,null,0,null,null,0,null,null,0]
[null,"Или прыжок в длину с места толчком двумя ногами (см)",null,0,null,null,0,null,null,0,null,null,0,null,null,0]
[null,"Плавание 50 м (мин,с)",null,0,null,null,0,null,null,0,null,null,0,null,null,0]
[null,"бег на 60м (с)","13-15 лет",0,null,null,0,null,null,0,null,null,0,null,null,0]
[null,"Бег на 2 км. (мин, с)",null,0,null,null,0,null,null,0,null,null,0,null,null,0]
[null,"Или на 3 км (мин,с) девочки нет",null,0,null,null,0,null,null,0,null,null,0,null,null,0]
[null,"Прыжок в длину с разбега (см)",null,0,null,null,0,null,null,0,null,null,0,null,null,0]
[null,"Или прыжок в длину с места толчком двумя ногами (см)",null,0,null,null,0,null,null,0,null,null,0,null,null,0]
[null,"Плавание 50 м (мин,с)",null,0,null,null,0,null,null,0,null,null,0,null,null,0]
[null,"бег на 100м (с)","16-17 лет",0,null,null,0,null,null,0,null,null,0,null,null,0]
[null,"Бег на 2 км. (мин, с)",null,0,null,null,0,null,null,0,null,null,0,null,null,0]
[null,"Или на 3 км (мин,с) девочки нет",null,0,null,null,0,null,null,0,null,null,0,null,null,0]
[null,"Прыжок в длину с разбега (см)",null,0,null,null,0,null,null,0,null,null,0,null,null,0]
[null,"Или прыжок в длину с места толчком двумя ногами (см)",null,0,null,null,0,null,null,0,null,null,0,null,null,0]
[null,"Плавание 50 м (мин,с)",null,0,null,null,0,null,null,0,null,null,0,null,null,0]
[121,"Челночный бег на 3х10 м (с)","6-8 лет",{"$f":"E507+F507","v":0},null,null,{"$f":"H507+I507","v":0},null,null,{"$f":"K507+L507","v":0},null,null,{"$f":"N507+O507","v":0},null,null,0]
[null,"или бег на 30м (с)",null,{"$f":"E508+F508","v":0},null,null,{"$f":"H508+I508","v":0},null,null,{"$f":"K508+L508","v":0},null,null,{"$f":"N508+O508","v":0},null,null,0]
[null,"Смешанное передвижение (1 км)",null,0,null,null,0,null,null,0,null,null,0,null,null,0]
[null,"Прыжок в длину с места толчками двумя ногами (см)",null,0,null,null,0,null,null,0,null,null,0,null,null,0]
[null,"Плавание без учета времени(м)",null,0,null,null,0,null,null,0,null,null,0,null,null,0]
[null,"бег на 60м (с)","9-10 лет",0,null,null,0,null,null,0,null,null,0,null,null,0]
[null,"Бег на 1 км. (мин, с)",null,0,null,null,0,null,null,0,null,null,0,null,null,0]
[null,"Прыжок в длину с разбега (см)",null,0,null,null,0,null,null,0,null,null,0,null,null,0]
[null,"Или прыжок в длину с места толчком двумя ногами (см)",null,0,null,null,0,null,null,0,null,null,0,null,null,0]
[null,"Плавание без учета времени(м)",null,0,null,null,0,null,null,0,null,null,0,null,null,{"$f":"G516+J516+M516","v":0}]
[null,"бег на 60м (с)","11-12 лет",0,null,null,0,null,null,0,null,null,0,null,null,0]
[null,"Бег на 1,5 км. (мин, с)",null,0,null,null,0,null,null,0,null,null,0,null,null,0]
[null,"Или на 2 км (мин,с)",null,0,null,null,0,null,null,0,null,null,0,null,null,0]
[null,"Прыжок в длину с разбега (см)",null,0,null,null,0,null,null,0,null,null,0,null,null,0]
[null,"Или прыжок в длину с места толчком двумя ногами (см)",null,0,null,null,0,null,null,0,null,null,0,null,null,0]
[null,"Плавание 50 м (мин,с)",null,0,null,null,0,null,null,0,null,null,0,null,null,0]
[null,"бег на 60м (с)","13-15 лет",0,null,null,0,null,null,0,null,null,0,null,null,0]
[null,"Бег на 2 км. (мин, с)",null,0,null,null,0,null,null,0,null,null,0,null,null,0]
[null,"Или на 3 км (мин,с) девочки нет",null,0,null,null,0,null,null,0,null,null,0,null,null,0]
[null,"Прыжок в длину с разбега (см)",null,0,null,null,0,null,null,0,null,null,0,null,null,0]
[null,"Или прыжок в длину с места толчком двумя ногами (см)",null,0,null,null,0,null,null,0,null,null,0,null,null,0]
[null,"Плавание 50 м (мин,с)",null,0,null,null,0,null,null,0,null,null,0,null,null,0]
[null,"бег на 100м (с)","16-17 лет",0,null,null,0,null,null,0,null,null,0,null,null,0]
[null,"Бег на 2 км. (мин, с)",null,0,null,null,0,null,null,0,null,null,0,null,null,0]
[null,"Или на 3 км (мин,с) девочки нет",null,0,null,null,0,null,null,0,null,null,0,null,null,0]
[null,"Прыжок в длину с разбега (см)",null,0,null,null,0,null,null,0,null,null,0,null,null,0]
[null,"Или прыжок в длину с места толчком двумя ногами (см)",null,0,null,null,0,null,null,0,null,null,0,null,null,0]
[null,"Плавание 50 м (мин,с)",null,0,null,null,0,null,null,0,null,null,0,null,null,0]
[124,"Челночный бег на 3х10 м (с)","6-8 лет",60,29,31,32,15,17,25,13,12,3,1,2,60]
[null,"или бег на 30м (с)",null,{"$f":"E536+F536","v":0},null,null,{"$f":"H536+I536","v":0},null,null,{"$f":"K536+L536","v":0},null,null,{"$f":"N536+O536","v":0},null,null,0]
[null,"Смешанное передвижение (1 км)",null,60,29,31,35,17,18,21,6,15,4,2,2,60]
[null,"Прыжок в длину с места толчками двумя ногами (см)",null,60,29,31,32,15,17,25,13,12,3,1,2,60]
[null,"Плавание без учета времени(м)",null,{"$f":"E539+F539","v":0},null,null,{"$f":"H539+I539","v":0},null,null,{"$f":"K539+L539","v":0},null,null,{"$f":"N539+O539","v":0},null,null,0]
[null,"бег на 60м (с)","9-10 лет",64,36,28,34,19,15,27,16,11,3,1,2,64]
[null,"Бег на 1 км. (мин, с)",null,64,36,28,32,17,15,26,15,11,6,4,2,64]
[null,"Прыжок в длину с разбега (см)",null,0,null,null,0,null,null,0,null,null,0,null,null,0]
[null,"Или прыжок в длину с места толчком двумя ногами (см)",null,64,36,28,34,19,15,27,16,11,3,1,2,64]
[null,"Плавание без учета времени(м)",null,0,null,null,0,null,null,0,null,null,0,null,null,0]
[null,"бег на 60м (с)","11-12 лет",56,33,23,31,18,13,19,12,7,6,3,3,56]
[null,"Бег на 1,5 км. (мин, с)",null,56,33,23,30,17,13,19,11,8,7,5,2,56]
[null,"Или на 2 км (мин,с)",null,0,null,null,0,null,null,0,null,null,0,null,null,0]
[null,"Прыжок в длину с разбега (см)",null,0,null,null,0,null,null,0,null,null,0,null,null,0]
[null,"Или прыжок в длину с места толчком двумя ногами (см)",null,56,33,23,33,18,15,20,12,8,3,3,0,56]
[null,"Плавание 50 м (мин,с)",null,0,null,null,0,null,null,0,null,null,0,null,null,0]
[null,"бег на 60м (с)","13-15 лет",76,40,36,43,25,18,25,13,12,8,2,6,76]
[null,"Бег на 2 км. (мин, с)",null,76,40,36,45,26,19,23,12,11,8,2,6,76]
[null,"Или на 3 км (мин,с) девочки нет",null,0,null,null,0,null,null,0,null,null,0,null,null,0]
[null,"Прыжок в длину с разбега (см)",null,0,null,null,0,null,null,0,null,null,0,null,null,0]
[null,"Или прыжок в длину с места толчком двумя ногами (см)",null,76,40,36,43,25,18,27,14,13,6,1,5,76]
[null,"Плавание 50 м (мин,с)",null,0,null,null,0,null,null,0,null,null,0,null,null,0]
[null,"бег на 100м (с)","16-17 лет",20,7,13,14,4,10,4,2,2,2,1,1,20]
[null,"Бег на 2 км. (мин, с)",null,20,7,13,12,4,8,4,2,2,4,1,3,20]
[null,"Или на 3 км (мин,с) девочки нет",null,0,null,null,0,null,null,0,null,null,0,null,null,0]
[null,"Прыжок в длину с разбега (см)",null,0,null,null,0,null,null,0,null,null,0,null,null,0]
[null,"Или прыжок в длину с места толчком двумя ногами (см)",null,20,7,13,14,5,9,4,2,2,2,0,2,20]
[null,"Плавание 50 м (мин,с)",null,0,null,null,0,null,null,0,null,null,0,null,null,0]
[125,"Челночный бег на 3х10 м (с)","6-8 лет",{"$f":"E563+F563","v":0},null,null,{"$f":"H563+I563","v":0},null,null,{"$f":"K563+L563","v":0},null,null,{"$f":"N563+O563","v":0},null,null,0]
[null,"или бег на 30м (с)",null,{"$f":"E564+F564","v":0},null,null,{"$f":"H564+I564","v":0},null,null,{"$f":"K564+L564","v":0},null,null,{"$f":"N564+O564","v":0},null,null,0]
[null,"Смешанное передвижение (1 км)",null,0,null,null,0,null,null,0,null,null,0,null,null,0]
[null,"Прыжок в длину с места толчками двумя ногами (см)",null,0,null,null,0,null,null,0,null,null,0,null,null,0]
[null,"Плавание без учета времени(м)",null,0,null,null,0,null,null,0,null,null,0,null,null,0]
[null,"бег на 60м (с)","9-10 лет",0,null,null,0,null,null,0,null,null,0,null,null,0]
[null,"Бег на 1 км. (мин, с)",null,0,null,null,0,null,null,0,null,null,0,null,null,0]
[null,"Прыжок в длину с разбега (см)",null,0,null,null,0,null,null,0,null,null,0,null,null,0]
[null,"Или прыжок в длину с места толчком двумя ногами (см)",null,0,null,null,0,null,null,0,null,null,0,null,null,0]
[null,"Плавание без учета времени(м)",null,0,null,null,0,null,null,0,null,null,0,null,null,0]
[null,"бег на 60м (с)","11-12 лет",0,null,null,0,null,null,0,null,null,0,null,null,0]
[null,"Бег на 1,5 км. (мин, с)",null,0,null,null,0,null,null,0,null,null,0,null,null,0]
[null,"Или на 2 км (мин,с)",null,0,null,null,0,null,null,0,null,null,0,null,null,0]
[null,"Прыжок в длину с разбега (см)",null,0,null,null,0,null,null,0,null,null,0,null,null,0]
[null,"Или прыжок в длину с места толчком двумя ногами (см)",null,0,null,null,0,null,null,0,null,null,0,null,null,0]
[null,"Плавание 50 м (мин,с)",null,0,null,null,0,null,null,0,null,null,0,null,null,0]
[null,"бег на 60м (с)","13-15 лет",0,null,null,0,null,null,0,null,null,0,null,null,0]
[null,"Бег на 2 км. (мин, с)",null,0,null,null,0,null,null,0,null,null,0,null,null,{"$f":"G580+J580+M580","v":0}]
[null,"Или на 3 км (мин,с) девочки нет",null,0,null,null,0,null,null,0,null,null,0,null,null,0]
[null,"Прыжок в длину с разбега (см)",null,0,null,null,0,null,null,0,null,null,0,null,null,0]
[null,"Или прыжок в длину с места толчком двумя ногами (см)",null,0,null,null,0,null,null,0,null,null,0,null,null,0]
[null,"Плавание 50 м (мин,с)",null,0,null,null,0,null,null,0,null,null,0,null,null,0]
[null,"бег на 100м (с)","16-17 лет",0,null,null,0,null,null,0,null,null,0,null,null,0]
[null,"Бег на 2 км. (мин, с)",null,0,null,null,0,null,null,0,null,null,0,null,null,0]
[null,"Или на 3 км (мин,с) девочки нет",null,0,null,null,0,null,null,0,null,null,0,null,null,0]
[null,"Прыжок в длину с разбега (см)",null,0,null,null,0,null,null,0,null,null,0,null,null,0]
[null,"Или прыжок в длину с места толчком двумя ногами (см)",null,0,null,null,0,null,null,0,null,null,0,null,null,0]
[null,"Плавание 50 м (мин,с)",null,0,null,null,0,null,null,0,null,null,0,null,null,0]
[126,"Челночный бег на 3х10 м (с)","6-8 лет",{"$f":"E591+F591","v":101},50,51,{"$f":"H591+I591","v":101},50,51,{"$f":"K591+L591","v":0},0,0,{"$f":"N591+O591","v":0},0,0,101]
[null,"или бег на 30м (с)",null,{"$f":"E592+F592","v":0},null,null,{"$f":"H592+I592","v":0},null,null,{"$f":"K592+L592","v":0},null,null,{"$f":"N592+O592","v":0},null,null,0]
[null,"Смешанное передвижение (1 км)",null,{"$f":"E593+F593","v":101},50,51,{"$f":"H593+I593","v":101},50,51,{"$f":"K593+L593","v":0},0,0,{"$f":"N593+O593","v":0},0,0,{"$f":"G593+J593+M593","v":101}]
[null,"Прыжок в длину с места толчками двумя ногами (см)",null,{"$f":"E594+F594","v":101},50,51,{"$f":"H594+I594","v":101},50,51,{"$f":"K594+L594","v":0},0,0,{"$f":"N594+O594","v":0},0,0,101]
[null,"Плавание без учета времени(м)",null,0,null,null,0,null,null,0,null,null,0,null,null,0]
[null,"бег на 60м (с)","9-10 лет",78,41,37,78,41,37,0,0,0,0,0,0,78]
[null,"Бег на 1 км. (мин, с)",null,78,41,37,78,41,37,0,0,0,0,0,0,78]
[null,"Прыжок в длину с разбега (см)",null,0,null,null,0,null,null,0,null,null,0,null,null,0]
[null,"Или прыжок в длину с места толчком двумя ногами (см)",null,78,41,37,78,41,37,0,0,0,0,0,0,78]
[null,"Плавание без учета времени(м)",null,0,null,null,0,null,null,0,null,null,0,null,null,0]
[null,"бег на 60м (с)","11-12 лет",74,31,43,74,31,43,0,0,0,0,0,0,74]
[null,"Бег на 1,5 км. (мин, с)",null,74,31,43,74,31,43,0,0,0,0,0,0,74]
[null,"Или на 2 км (мин,с)",null,0,null,null,0,null,null,0,null,null,0,null,null,0]
[null,"Прыжок в длину с разбега (см)",null,0,{"$nulls":5},0,0,0,0,0,0,0]
[null,"Или прыжок в длину с места толчком двумя ногами (см)",null,74,31,43,74,31,43,0,0,0,0,null,null,74]
[null,"Плавание 50 м (мин,с)",null,0,null,null,0,null,null,0,null,null,0,null,null,0]
[null,"бег на 60м (с)","13-15 лет",62,27,35,62,27,35,0,0,0,0,0,0,62]
[null,"Бег на 2 км. (мин, с)",null,62,27,35,62,27,35,0,0,0,0,0,0,62]
[null,"Или на 3 км (мин,с) девочки нет",null,0,null,null,0,null,null,0,null,null,0,null,null,0]
[null,"Прыжок в длину с разбега (см)",null,0,null,null,0,null,null,0,null,null,0,null,null,0]
[null,"Или прыжок в длину с места толчком двумя ногами (см)",null,62,27,35,62,27,35,0,0,0,0,0,0,62]
[null,"Плавание 50 м (мин,с)",null,0,null,null,0,null,null,0,null,null,0,null,null,0]
[null,"бег на 100м (с)","16-17 лет",39,18,21,39,18,21,0,0,0,0,0,0,39]
[null,"Бег на 2 км. (мин, с)",null,39,18,21,39,18,21,0,0,0,0,0,0,39]
[null,"Или на 3 км (мин,с) девочки нет",null,0,null,null,0,null,null,0,null,null,0,null,null,0]
[null,"Прыжок в длину с разбега (см)",null,0,null,null,0,null,null,0,null,null,0,null,null,0]
[null,"Или прыжок в длину с места толчком двумя ногами (см)",null,39,18,21,39,18,21,0,0,0,0,0,0,39]
[null,"Плавание 50 м (мин,с)",null,0,null,null,0,null,null,0,null,null,0,null,null,0]
[140,"Челночный бег на 3х10 м (с)","6-8 лет",{"$f":"E619+F619","v":54},23,31,{"$f":"H619+I619","v":22},14,8,{"$f":"K619+L619","v":16},10,6,{"$f":"N619+O619","v":16},6,10,54]
[null,"или бег на 30м (с)",null,{"$f":"E620+F620","v":0},null,null,{"$f":"H620+I620","v":0},null,null,{"$f":"K620+L620","v":0},null,null,{"$f":"N620+O620","v":0},null,null,0]
[null,"Смешанное передвижение (1 км)",null,{"$f":"E621+F621","v":54},23,31,{"$f":"H621+I621","v":45},21,24,{"$f":"K621+L621","v":6},2,4,{"$f":"N621+O621","v":3},0,3,54]
[null,"Прыжок в длину с места толчками двумя ногами (см)",null,{"$f":"E622+F622","v":54},23,31,{"$f":"H622+I622","v":27},17,10,{"$f":"K622+L622","v":5},1,4,{"$f":"N622+O622","v":22},5,17,54]
[null,"Плавание без учета времени(м)",null,0,null,null,0,null,null,0,null,null,0,null,null,0]
[null,"бег на 60м (с)","9-10 лет",43,18,25,40,17,23,3,1,2,0,0,0,43]
[null,"Бег на 1 км. (мин, с)",null,43,18,25,41,17,24,2,1,1,0,0,0,43]
[null,"Прыжок в длину с разбега (см)",null,0,null,null,0,null,null,0,null,null,0,null,null,0]
[null,"Или прыжок в длину с места толчком двумя ногами (см)",null,43,18,25,37,17,20,6,1,5,0,0,0,43]
[null,"Плавание без учета времени(м)",null,0,null,null,0,null,null,0,null,null,0,null,null,0]
[null,"бег на 60м (с)","11-12 лет",35,17,18,35,17,18,0,null,null,0,null,null,35]
[null,"Бег на 1,5 км. (мин, с)",null,35,17,18,35,17,18,0,null,null,0,null,null,35]
[null,"Или на 2 км (мин,с)",null,0,null,null,0,null,null,0,null,null,0,null,null,0]
[null,"Прыжок в длину с разбега (см)",null,0,null,null,0,null,null,0,null,null,0,null,null,0]
[null,"Или прыжок в длину с места толчком двумя ногами (см)",null,35,17,18,35,17,18,0,0,0,0,0,0,35]
[null,"Плавание 50 м (мин,с)",null,0,null,null,0,null,null,0,null,null,0,null,null,0]
[null,"бег на 60м (с)","13-15 лет",29,13,16,29,13,16,0,0,0,0,null,null,29]
[null,"Бег на 2 км. (мин, с)",null,29,13,16,29,13,16,0,0,0,0,0,0,29]
[null,"Или на 3 км (мин,с) девочки нет",null,0,null,null,0,null,null,0,null,null,0,null,null,0]
[null,"Прыжок в длину с разбега (см)",null,0,null,null,0,null,null,0,null,null,0,null,null,0]
[null,"Или прыжок в длину с места толчком двумя ногами (см)",null,29,13,16,29,13,16,0,0,0,0,0,0,29]
[null,"Плавание 50 м (мин,с)",null,0,null,null,0,null,null,0,null,null,0,null,null,0]
[null,"бег на 100м (с)","16-17 лет",13,6,7,13,6,7,0,0,0,0,0,0,13]
[null,"Бег на 2 км. (мин, с)",null,13,6,7,13,6,7,0,0,0,0,0,0,13]
[null,"Или на 3 км (мин,с) девочки нет",null,0,null,null,0,null,null,0,null,null,0,null,null,0]
[null,"Прыжок в длину с разбега (см)",null,0,null,null,0,null,null,0,null,null,0,null,null,{"$f":"G644+J644+M644","v":0}]
[null,"Или прыжок в длину с места толчком двумя ногами (см)",null,13,6,7,13,6,7,0,0,0,0,0,0,13]
[null,"Плавание 50 м (мин,с)",null,0,null,null,0,null,null,0,null,null,0,null,null,0]
[141,"Челночный бег на 3х10 м (с)","6-8 лет",{"$f":"E647+F647","v":217},103,114,{"$f":"H647+I647","v":217},103,114,{"$f":"K647+L647","v":0},null,null,{"$f":"N647+O647","v":0},null,null,217]
[null,"или бег на 30м (с)",null,{"$f":"E648+F648","v":217},103,114,{"$f":"H648+I648","v":217},103,114,{"$f":"K648+L648","v":0},null,null,{"$f":"N648+O648","v":0},null,null,217]
[null,"Смешанное передвижение (1 км)",null,0,null,null,0,null,null,0,null,null,0,null,null,0]
[null,"Прыжок в длину с места толчками двумя ногами (см)",null,217,103,114,217,103,114,0,null,null,0,null,null,217]
[null,"Плавание без учета времени(м)",null,0,null,null,0,null,null,0,null,null,0,null,null,0]
[null,"бег на 60м (с)","9-10 лет",243,117,126,240,116,124,3,1,2,0,null,null,243]
[null,"Бег на 1 км. (мин, с)",null,243,117,126,241,116,125,2,1,1,0,null,null,243]
[null,"Прыжок в длину с разбега (см)",null,0,null,null,0,null,null,0,null,null,0,null,null,0]
[null,"Или прыжок в длину с места толчком двумя ногами (см)",null,243,117,126,239,115,124,4,2,2,0,null,null,243]
[null,"Плавание без учета времени(м)",null,0,null,null,0,null,null,0,null,null,0,null,null,0]
[null,"бег на 60м (с)","11-12 лет",221,104,117,215,102,113,6,2,4,0,null,null,221]
[null,"Бег на 1,5 км. (мин, с)",null,221,104,117,213,100,113,8,4,4,0,null,null,221]
[null,"Или на 2 км (мин,с)",null,0,null,null,0,null,null,0,null,null,0,null,null,0]
[null,"Прыжок в длину с разбега (см)",null,0,null,null,0,null,null,0,null,null,0,null,null,0]
[null,"Или прыжок в длину с места толчком двумя ногами (см)",null,221,104,117,213,102,111,8,2,6,0,null,null,221]
[null,"Плавание 50 м (мин,с)",null,0,null,null,0,null,null,0,null,null,0,null,null,0]
[null,"бег на 60м (с)","13-15 лет",263,120,143,263,120,143,0,null,null,0,null,null,263]
[null,"Бег на 2 км. (мин, с)",null,263,120,143,261,119,142,2,1,1,0,null,null,263]
[null,"Или на 3 км (мин,с) девочки нет",null,0,null,null,0,null,null,0,null,null,0,null,null,0]
[null,"Прыжок в длину с разбега (см)",null,0,null,null,0,null,null,0,null,null,0,null,null,0]
[null,"Или прыжок в длину с места толчком двумя ногами (см)",null,263,120,143,263,120,143,0,null,null,0,null,null,263]
[null,"Плавание 50 м (мин,с)",null,0,null,null,0,null,null,0,null,null,0,null,null,0]
[null,"бег на 100м (с)","16-17 лет",79,43,36,79,43,36,0,null,null,0,null,null,79]
[null,"Бег на 2 км. (мин, с)",null,79,43,36,77,42,35,2,1,1,0,null,null,79]
[null,"Или на 3 км (мин,с) девочки нет",null,0,null,null,0,null,null,0,null,null,0,null,null,0]
[null,"Прыжок в длину с разбега (см)",null,0,null,null,0,null,null,0,null,null,0,null,null,0]
[null,"Или прыжок в длину с места толчком двумя ногами (см)",null,79,43,36,78,43,35,1,null,1,0,null,null,79]
[null,"Плавание 50 м (мин,с)",null,0,null,null,0,null,null,0,null,null,0,null,null,0]
[144,"Челночный бег на 3х10 м (с)","6-8 лет",{"$f":"E675+F675","v":157},80,77,{"$f":"H675+I675","v":78},40,38,{"$f":"K675+L675","v":64},28,36,{"$f":"N675+O675","v":15},12,3,157]
[null,"или бег на 30м (с)",null,{"$f":"E676+F676","v":0},0,0,{"$f":"H676+I676","v":0},0,0,{"$f":"K676+L676","v":0},0,0,{"$f":"N676+O676","v":0},0,0,{"$f":"G677+J677+M677","v":157}]
[null,"Смешанное передвижение (1 км)",null,{"$f":"E677+F677","v":157},80,77,{"$f":"H677+I677","v":91},45,46,{"$f":"K677+L677","v":36},30,6,{"$f":"N677+O677","v":30},5,25,{"$f":"G678+J678+M678","v":157}]
[null,"Прыжок в длину с места толчками двумя ногами (см)",null,{"$f":"E678+F678","v":157},80,77,{"$f":"H678+I678","v":85},44,41,{"$f":"K678+L678","v":28},12,16,{"$f":"N678+O678","v":44},24,20,157]
[null,"Плавание без учета времени(м)",null,0,0,0,0,0,0,0,0,0,0,0,0,0]
[null,"бег на 60м (с)","9-10 лет",130,75,55,88,52,36,31,17,14,11,6,5,130]
[null,"Бег на 1 км. (мин, с)",null,130,75,55,83,50,33,23,10,13,24,15,9,130]
[null,"Прыжок в длину с разбега (см)",null,0,0,0,0,0,0,0,0,0,0,0,0,0]
[null,"Или прыжок в длину с места толчком двумя ногами (см)",null,130,75,55,75,47,28,31,16,15,24,12,12,130]
[null,"Плавание без учета времени(м)",null,0,0,0,0,0,0,0,0,0,0,0,0,0]
[null,"бег на 60м (с)","11-12 лет",161,81,80,131,70,61,35,12,23,0,0,0,166]
[null,"Бег на 1,5 км. (мин, с)",null,161,81,80,76,42,34,85,39,46,0,0,0,161]
[null,"Или на 2 км (мин,с)",null,0,0,0,0,0,0,0,0,0,0,0,0,0]
[null,"Прыжок в длину с разбега (см)",null,0,0,0,0,0,0,0,0,0,0,0,0,0]
[null,"Или прыжок в длину с места толчком двумя ногами (см)",null,161,81,80,161,81,80,0,0,0,0,0,0,161]
[null,"Плавание 50 м (мин,с)",null,0,0,0,0,0,0,0,0,0,0,0,0,0]
[null,"бег на 60м (с)","13-15 лет",140,75,65,125,67,58,15,8,7,0,0,0,140]
[null,"Бег на 2 км. (мин, с)",null,140,75,65,93,56,37,47,17,30,0,0,0,140]
[null,"Или на 3 км (мин,с) девочки нет",null,0,0,0,0,0,0,0,0,0,0,0,0,0]
[null,"Прыжок в длину с разбега (см)",null,0,0,0,0,0,0,0,0,0,0,0,0,0]
[null,"Или прыжок в длину с места толчком двумя ногами (см)",null,140,75,65,133,74,59,7,1,6,0,0,0,140]
[null,"Плавание 50 м (мин,с)",null,0,0,0,0,0,0,0,0,0,0,0,0,0]
[null,"бег на 100м (с)","16-17 лет",38,12,26,37,12,25,1,0,1,0,0,0,38]
[null,"Бег на 2 км. (мин, с)",null,38,12,26,21,9,12,17,3,14,0,0,0,38]
[null,"Или на 3 км (мин,с) девочки нет",null,0,0,0,0,0,0,0,0,0,0,0,0,0]
[null,"Прыжок в длину с разбега (см)",null,0,0,0,0,0,0,0,0,0,0,0,0,0]
[null,"Или прыжок в длину с места толчком двумя ногами (см)",null,38,12,26,38,12,26,0,0,0,0,0,0,38]
[null,"Плавание 50 м (мин,с)",null,0,0,0,0,0,0,0,0,0,0,0,0,0]
[149,"Челночный бег на 3х10 м (с)","6-8 лет",{"$f":"E703+F703","v":0},null,null,{"$f":"H703+I703","v":0},null,null,{"$f":"K703+L703","v":0},null,null,{"$f":"N703+O703","v":0},null,null,0]
[null,"или бег на 30м (с)",null,{"$f":"E704+F704","v":0},null,null,{"$f":"H704+I704","v":0},null,null,{"$f":"K704+L704","v":0},null,null,{"$f":"N704+O704","v":0},null,null,0]
[null,"Смешанное передвижение (1 км)",null,0,null,null,0,null,null,0,null,null,0,null,null,0]
[null,"Прыжок в длину с места толчками двумя ногами (см)",null,0,null,null,0,null,null,0,null,null,0,null,null,0]
[null,"Плавание без учета времени(м)",null,0,null,null,0,null,null,0,null,null,0,null,null,0]
[null,"бег на 60м (с)","9-10 лет",0,null,null,0,null,null,0,null,null,0,null,null,{"$f":"G708+J708+M708","v":0}]
[null,"Бег на 1 км. (мин, с)",null,0,null,null,0,null,null,0,null,null,0,null,null,0]
[null,"Прыжок в длину с разбега (см)",null,0,null,null,0,null,null,0,null,null,0,null,null,0]
[null,"Или прыжок в длину с места толчком двумя ногами (см)",null,0,null,null,0,null,null,0,null,null,0,null,null,0]
[null,"Плавание без учета времени(м)",null,0,null,null,0,null,null,0,null,null,0,null,null,0]
[null,"бег на 60м (с)","11-12 лет",0,null,null,0,null,null,0,null,null,0,null,null,0]
[null,"Бег на 1,5 км. (мин, с)",null,0,null,null,0,null,null,0,null,null,0,null,null,0]
[null,"Или на 2 км (мин,с)",null,0,null,null,0,null,null,0,null,null,0,null,null,0]
[null,"Прыжок в длину с разбега (см)",null,0,null,null,0,null,null,0,null,null,0,null,null,0]
[null,"Или прыжок в длину с места толчком двумя ногами (см)",null,0,null,null,0,null,null,0,null,null,0,null,null,0]
[null,"Плавание 50 м (мин,с)",null,0,null,null,0,null,null,0,null,null,0,null,null,0]
[null,"бег на 60м (с)","13-15 лет",0,null,null,0,null,null,0,null,null,0,null,null,0]
[null,"Бег на 2 км. (мин, с)",null,0,null,null,0,null,null,0,null,null,0,null,null,0]
[null,"Или на 3 км (мин,с) девочки нет",null,0,null,null,0,null,null,0,null,null,0,null,null,0]
[null,"Прыжок в длину с разбега (см)",null,0,null,null,0,null,null,0,null,null,0,null,null,0]
[null,"Или прыжок в длину с места толчком двумя ногами (см)",null,0,null,null,0,null,null,0,null,null,0,null,null,0]
[null,"Плавание 50 м (мин,с)",null,0,null,null,0,null,null,0,null,null,0,null,null,0]
[null,"бег на 100м (с)","16-17 лет",0,null,null,0,null,null,0,null,null,0,null,null,0]
[null,"Бег на 2 км. (мин, с)",null,0,null,null,0,null,null,0,null,null,0,null,null,0]
[null,"Или на 3 км (мин,с) девочки нет",null,0,null,null,0,null,null,0,null,null,0,null,null,0]
[null,"Прыжок в длину с разбега (см)",null,0,null,null,0,null,null,0,null,null,0,null,null,0]
[null,"Или прыжок в длину с места толчком двумя ногами (см)",null,0,null,null,0,null,null,0,null,null,0,null,null,0]
[null,"Плавание 50 м (мин,с)",null,0,null,null,0,null,null,0,null,null,0,null,null,0]
[156,"Челночный бег на 3х10 м (с)","6-8 лет",{"$f":"E731+F731","v":0},null,null,{"$f":"H731+I731","v":0},null,null,{"$f":"K731+L731","v":0},null,null,{"$f":"N731+O731","v":0},null,null,0]
[null,"или бег на 30м (с)",null,{"$f":"E732+F732","v":0},null,null,{"$f":"H732+I732","v":0},null,null,{"$f":"K732+L732","v":0},null,null,{"$f":"N732+O732","v":0},null,null,0]
[null,"Смешанное передвижение (1 км)",null,0,null,null,0,null,null,0,null,null,0,null,null,0]
[null,"Прыжок в длину с места толчками двумя ногами (см)",null,0,null,null,0,null,null,0,null,null,0,null,null,0]
[null,"Плавание без учета времени(м)",null,0,null,null,0,null,null,0,null,null,0,null,null,0]
[null,"бег на 60м (с)","9-10 лет",0,null,null,0,null,null,0,null,null,0,null,null,0]
[null,"Бег на 1 км. (мин, с)",null,0,null,null,0,null,null,0,null,null,0,null,null,0]
[null,"Прыжок в длину с разбега (см)",null,0,null,null,0,null,null,0,null,null,0,null,null,0]
[null,"Или прыжок в длину с места толчком двумя ногами (см)",null,0,null,null,0,null,null,0,null,null,0,null,null,0]
[null,"Плавание без учета времени(м)",null,0,null,null,0,null,null,0,null,null,0,null,null,0]
[null,"бег на 60м (с)","11-12 лет",0,null,null,0,null,null,0,null,null,0,null,null,0]
[null,"Бег на 1,5 км. (мин, с)",null,0,null,null,0,null,null,0,null,null,0,null,null,0]
[null,"Или на 2 км (мин,с)",null,0,null,null,0,null,null,0,null,null,0,null,null,0]
[null,"Прыжок в длину с разбега (см)",null,0,null,null,0,null,null,0,null,null,0,null,null,0]
[null,"Или прыжок в длину с места толчком двумя ногами (см)",null,0,null,null,0,null,null,0,null,null,0,null,null,0]
[null,"Плавание 50 м (мин,с)",null,0,null,null,0,null,null,0,null,null,0,null,null,0]
[null,"бег на 60м (с)","13-15 лет",0,null,null,0,null,null,0,null,null,0,null,null,0]
[null,"Бег на 2 км. (мин, с)",null,0,null,null,0,null,null,0,null,null,0,null,null,0]
[null,"Или на 3 км (мин,с) девочки нет",null,0,null,null,0,null,null,0,null,null,0,null,null,0]
[null,"Прыжок в длину с разбега (см)",null,0,null,null,0,null,null,0,null,null,0,null,null,0]
[null,"Или прыжок в длину с места толчком двумя ногами (см)",null,0,null,null,0,null,null,0,null,null,0,null,null,0]
[null,"Плавание 50 м (мин,с)",null,0,null,null,0,null,null,0,null,null,0,null,null,0]
[null,"бег на 100м (с)","16-17 лет",0,null,null,0,null,null,0,null,null,0,null,null,0]
[null,"Бег на 2 км. (мин, с)",null,0,null,null,0,null,null,0,null,null,0,null,null,0]
[null,"Или на 3 км (мин,с) девочки нет",null,0,null,null,0,null,null,0,null,null,0,null,null,0]
[null,"Прыжок в длину с разбега (см)",null,0,null,null,0,null,null,0,null,null,0,null,null,0]
[null,"Или прыжок в длину с места толчком двумя ногами (см)",null,0,null,null,0,null,null,0,null,null,0,null,null,0]
[null,"Плавание 50 м (мин,с)",null,0,null,null,0,null,null,0,null,null,0,null,null,0]
[159,"Челночный бег на 3х10 м (с)","6-8 лет",{"$f":"E759+F759","v":0},null,null,{"$f":"H759+I759","v":0},null,null,{"$f":"K759+L759","v":0},null,null,{"$f":"N759+O759","v":0},null,null,0]
[null,"или бег на 30м (с)",null,{"$f":"E760+F760","v":0},null,null,{"$f":"H760+I760","v":0},null,null,{"$f":"K760+L760","v":0},null,null,{"$f":"N760+O760","v":0},null,null,0]
[null,"Смешанное передвижение (1 км)",null,0,null,null,0,null,null,0,null,null,0,null,null,0]
[null,"Прыжок в длину с места толчками двумя ногами (см)",null,0,null,null,0,null,null,0,null,null,0,null,null,0]
[null,"Плавание без учета времени(м)",null,0,null,null,0,null,null,0,null,null,0,null,null,0]
[null,"бег на 60м (с)","9-10 лет",0,null,null,0,null,null,0,null,null,0,null,null,0]
[null,"Бег на 1 км. (мин, с)",null,0,null,null,0,null,null,0,null,null,0,null,null,0]
[null,"Прыжок в длину с разбега (см)",null,0,null,null,0,null,null,0,null,null,0,null,null,0]
[null,"Или прыжок в длину с места толчком двумя ногами (см)",null,0,null,null,0,null,null,0,null,null,0,null,null,0]
[null,"Плавание без учета времени(м)",null,0,null,null,0,null,null,0,null,null,0,null,null,0]
[null,"бег на 60м (с)","11-12 лет",0,null,null,0,null,null,0,null,null,0,null,null,0]
[null,"Бег на 1,5 км. (мин, с)",null,0,null,null,0,null,null,0,null,null,0,null,null,0]
[null,"Или на 2 км (мин,с)",null,0,null,null,0,null,null,0,null,null,0,null,null,0]
[null,"Прыжок в длину с разбега (см)",null,0,null,null,0,null,null,0,null,null,0,null,null,{"$f":"G772+J772+M772","v":0}]
[null,"Или прыжок в длину с места толчком двумя ногами (см)",null,0,null,null,0,null,null,0,null,null,0,null,null,0]
[null,"Плавание 50 м (мин,с)",null,0,null,null,0,null,null,0,null,null,0,null,null,0]
[null,"бег на 60м (с)","13-15 лет",0,null,null,0,null,null,0,null,null,0,null,null,0]
[null,"Бег на 2 км. (мин, с)",null,0,null,null,0,null,null,0,null,null,0,null,null,0]
[null,"Или на 3 км (мин,с) девочки нет",null,0,null,null,0,null,null,0,null,null,0,null,null,0]
[null,"Прыжок в длину с разбега (см)",null,0,null,null,0,null,null,0,null,null,0,null,null,0]
[null,"Или прыжок в длину с места толчком двумя ногами (см)",null,0,null,null,0,null,null,0,null,null,0,null,null,0]
[null,"Плавание 50 м (мин,с)",null,0,null,null,0,null,null,0,null,null,0,null,null,0]
[null,"бег на 100м (с)","16-17 лет",0,null,null,0,null,null,0,null,null,0,null,null,0]
[null,"Бег на 2 км. (мин, с)",null,0,null,null,0,null,null,0,null,null,0,null,null,0]
[null,"Или на 3 км (мин,с) девочки нет",null,0,null,null,0,null,null,0,null,null,0,null,null,0]
[null,"Прыжок в длину с разбега (см)",null,0,null,null,0,null,null,0,null,null,0,null,null,0]
[null,"Или прыжок в длину с места толчком двумя ногами (см)",null,0,null,null,0,null,null,0,null,null,0,null,null,0]
[null,"Плавание 50 м (мин,с)",null,0,null,null,0,null,null,0,null,null,0,null,null,0]
[161,"Челночный бег на 3х10 м (с)","6-8 лет",{"$f":"E787+F787","v":0},null,null,{"$f":"H787+I787","v":0},null,null,{"$f":"K787+L787","v":0},null,null,{"$f":"N787+O787","v":0},null,null,0]
[null,"или бег на 30м (с)",null,{"$f":"E788+F788","v":0},null,null,{"$f":"H788+I788","v":0},null,null,{"$f":"K788+L788","v":0},null,null,{"$f":"N788+O788","v":0},null,null,0]
[null,"Смешанное передвижение (1 км)",null,0,null,null,0,null,null,0,null,null,0,null,null,0]
[null,"Прыжок в длину с места толчками двумя ногами (см)",null,0,null,null,0,null,null,0,null,null,0,null,null,0]
[null,"Плавание без учета времени(м)",null,0,null,null,0,null,null,0,null,null,0,null,null,0]
[null,"бег на 60м (с)","9-10 лет",0,null,null,0,null,null,0,null,null,0,null,null,0]
[null,"Бег на 1 км. (мин, с)",null,0,null,null,0,null,null,0,null,null,0,null,null,0]
[null,"Прыжок в длину с разбега (см)",null,0,null,null,0,null,null,0,null,null,0,null,null,0]
[null,"Или прыжок в длину с места толчком двумя ногами (см)",null,0,null,null,0,null,null,0,null,null,0,null,null,0]
[null,"Плавание без учета времени(м)",null,0,null,null,0,null,null,0,null,null,0,null,null,0]
[null,"бег на 60м (с)","11-12 лет",0,null,null,0,null,null,0,null,null,0,null,null,0]
[null,"Бег на 1,5 км. (мин, с)",null,0,null,null,0,null,null,0,null,null,0,null,null,0]
[null,"Или на 2 км (мин,с)",null,0,null,null,0,null,null,0,null,null,0,null,null,0]
[null,"Прыжок в длину с разбега (см)",null,0,null,null,0,null,null,0,null,null,0,null,null,0]
[null,"Или прыжок в длину с места толчком двумя ногами (см)",null,0,null,null,0,null,null,0,null,null,0,null,null,0]
[null,"Плавание 50 м (мин,с)",null,0,null,null,0,null,null,0,null,null,0,null,null,0]
[null,"бег на 60м (с)","13-15 лет",0,null,null,0,null,null,0,null,null,0,null,null,0]
[null,"Бег на 2 км. (мин, с)",null,0,null,null,0,null,null,0,null,null,0,null,null,0]
[null,"Или на 3 км (мин,с) девочки нет",null,0,null,null,0,null,null,0,null,null,0,null,null,0]
[null,"Прыжок в длину с разбега (см)",null,0,null,null,0,null,null,0,null,null,0,null,null,0]
[null,"Или прыжок в длину с места толчком двумя ногами (см)",null,0,null,null,0,null,null,0,null,null,0,null,null,0]
[null,"Плавание 50 м (мин,с)",null,0,null,null,0,null,null,0,null,null,0,null,null,0]
[null,"бег на 100м (с)","16-17 лет",0,null,null,0,null,null,0,null,null,0,null,null,0]
[null,"Бег на 2 км. (мин, с)",null,0,null,null,0,null,null,0,null,null,0,null,null,0]
[null,"Или на 3 км (мин,с) девочки нет",null,0,null,null,0,null,null,0,null,null,0,null,null,0]
[null,"Прыжок в длину с разбега (см)",null,0,null,null,0,null,null,0,null,null,0,null,null,0]
[null,"Или прыжок в длину с места толчком двумя ногами (см)",null,0,null,null,0,null,null,0,null,null,0,null,null,0]
[null,"Плавание 50 м (мин,с)",null,0,null,null,0,null,null,0,null,null,0,null,null,0]
[166,"Челночный бег на 3х10 м (с)","6-8 лет",{"$f":"E815+F815","v":0},null,null,{"$f":"H815+I815","v":0},null,null,{"$f":"K815+L815","v":0},null,null,{"$f":"N815+O815","v":0},null,null,0]
[null,"или бег на 30м (с)",null,{"$f":"E816+F816","v":0},null,null,{"$f":"H816+I816","v":0},null,null,{"$f":"K816+L816","v":0},null,null,{"$f":"N816+O816","v":0},null,null,0]
[null,"Смешанное передвижение (1 км)",null,0,null,null,0,null,null,0,null,null,0,null,null,0]
[null,"Прыжок в длину с места толчками двумя ногами (см)",null,0,null,null,0,null,null,0,null,null,0,null,null,0]
[null,"Плавание без учета времени(м)",null,0,null,null,0,null,null,0,null,null,0,null,null,0]
[null,"бег на 60м (с)","9-10 лет",0,null,null,0,null,null,0,null,null,0,null,null,0]
[null,"Бег на 1 км. (мин, с)",null,0,null,null,0,null,null,0,null,null,0,null,null,0]
[null,"Прыжок в длину с разбега (см)",null,0,null,null,0,null,null,0,null,null,0,null,null,0]
[null,"Или прыжок в длину с места толчком двумя ногами (см)",null,0,null,null,0,null,null,0,null,null,0,null,null,0]
[null,"Плавание без учета времени(м)",null,0,null,null,0,null,null,0,null,null,0,null,null,0]
[null,"бег на 60м (с)","11-12 лет",0,null,null,0,null,null,0,null,null,0,null,null,0]
[null,"Бег на 1,5 км. (мин, с)",null,0,null,null,0,null,null,0,null,null,0,null,null,0]
[null,"Или на 2 км (мин,с)",null,0,null,null,0,null,null,0,null,null,0,null,null,0]
[null,"Прыжок в длину с разбега (см)",null,0,null,null,0,null,null,0,null,null,0,null,null,0]
[null,"Или прыжок в длину с места толчком двумя ногами (см)",null,0,null,null,0,null,null,0,null,null,0,null,null,0]
[null,"Плавание 50 м (мин,с)",null,0,null,null,0,null,null,0,null,null,0,null,null,0]
[null,"бег на 60м (с)","13-15 лет",0,null,null,0,null,null,0,null,null,0,null,null,0]
[null,"Бег на 2 км. (мин, с)",null,0,null,null,0,null,null,0,null,null,0,null,null,0]
[null,"Или на 3 км (мин,с) девочки нет",null,0,null,null,0,null,null,0,null,null,0,null,null,0]
[null,"Прыжок в длину с разбега (см)",null,0,null,null,0,null,null,0,null,null,0,null,null,0]
[null,"Или прыжок в длину с места толчком двумя ногами (см)",null,0,null,null,0,null,null,0,null,null,0,null,null,0]
[null,"Плавание 50 м (мин,с)",null,0,null,null,0,null,null,0,null,null,0,null,null,{"$f":"G836+J836+M836","v":0}]
[null,"бег на 100м (с)","16-17 лет",0,null,null,0,null,null,0,null,null,0,null,null,0]
[null,"Бег на 2 км. (мин, с)",null,0,null,null,0,null,null,0,null,null,0,null,null,0]
[null,"Или на 3 км (мин,с) девочки нет",null,0,null,null,0,null,null,0,null,null,0,null,null,0]
[null,"Прыжок в длину с разбега (см)",null,0,null,null,0,null,null,0,null,null,0,null,null,0]
[null,"Или прыжок в длину с места толчком двумя ногами (см)",null,0,null,null,0,null,null,0,null,null,0,null,null,0]
[null,"Плавание 50 м (мин,с)",null,0,null,null,0,null,null,0,null,null,0,null,null,0]
[167,"Челночный бег на 3х10 м (с)","6-8 лет",{"$f":"E843+F843","v":227},104,123,{"$f":"H843+I843","v":200},89,111,{"$f":"K843+L843","v":14},8,6,{"$f":"N843+O843","v":5},3,2,219]
[null,"или бег на 30м (с)",null,{"$f":"E844+F844","v":0},null,null,{"$f":"H844+I844","v":0},null,null,{"$f":"K844+L844","v":0},null,null,{"$f":"N844+O844","v":0},null,null,0]
[null,"Смешанное передвижение (1 км)",null,227,104,123,200,89,111,0,null,null,5,3,2,205]
[null,"Прыжок в длину с места толчками двумя ногами (см)",null,0,null,null,0,null,null,0,null,null,0,null,null,0]
[null,"Плавание без учета времени(м)",null,227,104,123,200,89,111,22,4,4,5,3,2,227]
[null,"бег на 60м (с)","9-10 лет",0,null,null,0,null,null,0,null,null,0,null,null,0]
[null,"Бег на 1 км. (мин, с)",null,211,98,113,179,83,96,13,4,9,5,4,1,197]
[null,"Прыжок в длину с разбега (см)",null,211,98,113,179,83,96,14,7,7,5,4,1,198]
[null,"Или прыжок в длину с места толчком двумя ногами (см)",null,0,null,null,0,null,null,0,null,null,0,null,null,0]
[null,"Плавание без учета времени(м)",null,211,98,113,179,83,96,0,null,null,5,4,1,184]
[null,"бег на 60м (с)","11-12 лет",0,null,null,0,null,null,0,null,null,0,null,null,0]
[null,"Бег на 1,5 км. (мин, с)",null,205,99,106,{"$f":"H854+I854","v":205},99,106,9,1,8,9,2,7,223]
[null,"Или на 2 км (мин,с)",null,205,99,106,205,99,106,1,1,null,9,2,7,215]
[null,"Прыжок в длину с разбега (см)",null,0,null,null,0,null,null,0,null,null,0,null,null,0]
[null,"Или прыжок в длину с места толчком двумя ногами (см)",null,0,null,null,0,null,null,0,null,null,0,null,null,0]
[null,"Плавание 50 м (мин,с)",null,205,99,106,205,99,106,2,null,2,9,2,7,216]
[null,"бег на 60м (с)","13-15 лет",0,null,null,0,null,null,0,null,null,0,null,null,0]
[null,"Бег на 2 км. (мин, с)",null,260,135,125,260,135,125,3,2,1,14,4,10,277]
[null,"Или на 3 км (мин,с) девочки нет",null,260,135,125,260,135,125,6,5,1,14,4,10,280]
[null,"Прыжок в длину с разбега (см)",null,0,null,null,0,null,null,0,null,null,0,null,null,0]
[null,"Или прыжок в длину с места толчком двумя ногами (см)",null,260,135,125,260,135,125,17,7,10,14,4,10,291]
[null,"Плавание 50 м (мин,с)",null,0,null,null,0,null,null,0,null,null,0,null,null,0]
[null,"бег на 100м (с)","16-17 лет",0,null,null,0,null,null,0,null,null,0,null,null,0]
[null,"Бег на 2 км. (мин, с)",null,109,52,57,109,52,57,14,7,7,2,1,1,125]
[null,"Или на 3 км (мин,с) девочки нет",null,109,52,57,109,52,57,0,null,null,2,1,1,111]
[null,"Прыжок в длину с разбега (см)",null,0,null,null,0,null,null,0,null,null,0,null,null,0]
[null,"Или прыжок в длину с места толчком двумя ногами (см)",null,0,null,null,0,null,null,0,null,null,0,null,null,0]
[null,"Плавание 50 м (мин,с)",null,109,52,57,109,52,57,0,null,null,2,1,1,111]
[169,"Челночный бег на 3х10 м (с)","6-8 лет",0,null,null,0,null,null,0,null,null,0,null,null,0]
[null,"или бег на 30м (с)",null,{"$f":"E872+F872","v":0},null,null,{"$f":"H872+I872","v":0},null,null,{"$f":"K872+L872","v":0},null,null,{"$f":"N872+O872","v":0},null,null,0]
[null,"Смешанное передвижение (1 км)",null,0,null,null,0,null,null,0,null,null,0,null,null,0]
[null,"Прыжок в длину с места толчками двумя ногами (см)",null,0,null,null,0,null,null,0,null,null,0,null,null,0]
[null,"Плавание без учета времени(м)",null,0,null,null,0,null,null,0,null,null,0,null,null,0]
[null,"бег на 60м (с)","9-10 лет",0,null,null,0,null,null,0,null,null,0,null,null,0]
[null,"Бег на 1 км. (мин, с)",null,0,null,null,0,null,null,0,null,null,0,null,null,0]
[null,"Прыжок в длину с разбега (см)",null,0,null,null,0,null,null,0,null,null,0,null,null,0]
[null,"Или прыжок в длину с места толчком двумя ногами (см)",null,0,null,null,0,null,null,0,null,null,0,null,null,0]
[null,"Плавание без учета времени(м)",null,0,null,null,0,null,null,0,null,null,0,null,null,0]
[null,"бег на 60м (с)","11-12 лет",0,null,null,0,null,null,0,null,null,0,null,null,0]
[null,"Бег на 1,5 км. (мин, с)",null,0,null,null,0,null,null,0,null,null,0,null,null,0]
[null,"Или на 2 км (мин,с)",null,0,null,null,0,null,null,0,null,null,0,null,null,0]
[null,"Прыжок в длину с разбега (см)",null,0,null,null,0,null,null,0,null,null,0,null,null,0]
[null,"Или прыжок в длину с места толчком двумя ногами (см)",null,0,null,null,0,null,null,0,null,null,0,null,null,0]
[null,"Плавание 50 м (мин,с)",null,0,null,null,0,null,null,0,null,null,0,null,null,0]
[null,"бег на 60м (с)","13-15 лет",0,null,null,0,null,null,0,null,null,0,null,null,0]
[null,"Бег на 2 км. (мин, с)",null,0,null,null,0,null,null,0,null,null,0,null,null,0]
[null,"Или на 3 км (мин,с) девочки нет",null,0,null,null,0,null,null,0,null,null,0,null,null,0]
[null,"Прыжок в длину с разбега (см)",null,0,null,null,0,null,null,0,null,null,0,null,null,0]
[null,"Или прыжок в длину с места толчком двумя ногами (см)",null,0,null,null,0,null,null,0,null,null,0,null,null,0]
[null,"Плавание 50 м (мин,с)",null,0,null,null,0,null,null,0,null,null,0,null,null,0]
[null,"бег на 100м (с)","16-17 лет",0,null,null,0,null,null,0,null,null,0,null,null,0]
[null,"Бег на 2 км. (мин, с)",null,0,null,null,0,null,null,0,null,null,0,null,null,0]
[null,"Или на 3 км (мин,с) девочки нет",null,0,null,null,0,null,null,0,null,null,0,null,null,0]
[null,"Прыжок в длину с разбега (см)",null,0,null,null,0,null,null,0,null,null,0,null,null,0]
[null,"Или прыжок в длину с места толчком двумя ногами (см)",null,0,null,null,0,null,null,0,null,null,0,null,null,0]
[null,"Плавание 50 м (мин,с)",null,0,null,null,0,null,null,0,null,null,0,null,null,0]
[171,"Челночный бег на 3х10 м (с)","6-8 лет",{"$f":"E899+F899","v":0},null,null,{"$f":"H899+I899","v":0},null,null,{"$f":"K899+L899","v":0},null,null,{"$f":"N899+O899","v":0},null,null,0]
[null,"или бег на 30м (с)",null,{"$f":"E900+F900","v":0},null,null,{"$f":"H900+I900","v":0},null,null,{"$f":"K900+L900","v":0},null,null,{"$f":"N900+O900","v":0},null,null,{"$f":"G900+J900+M900","v":0}]
[null,"Смешанное передвижение (1 км)",null,0,null,null,0,null,null,0,null,null,0,null,null,0]
[null,"Прыжок в длину с места толчками двумя ногами (см)",null,0,null,null,0,null,null,0,null,null,0,null,null,0]
[null,"Плавание без учета времени(м)",null,0,null,null,0,null,null,0,null,null,0,null,null,0]
[null,"бег на 60м (с)","9-10 лет",0,null,null,0,null,null,0,null,null,0,null,null,0]
[null,"Бег на 1 км. (мин, с)",null,0,null,null,0,null,null,0,null,null,0,null,null,0]
[null,"Прыжок в длину с разбега (см)",null,0,null,null,0,null,null,0,null,null,0,null,null,0]
[null,"Или прыжок в длину с места толчком двумя ногами (см)",null,0,null,null,0,null,null,0,null,null,0,null,null,0]
[null,"Плавание без учета времени(м)",null,0,null,null,0,null,null,0,null,null,0,null,null,0]
[null,"бег на 60м (с)","11-12 лет",0,null,null,0,null,null,0,null,null,0,null,null,0]
[null,"Бег на 1,5 км. (мин, с)",null,0,null,null,0,null,null,0,null,null,0,null,null,0]
[null,"Или на 2 км (мин,с)",null,0,null,null,0,null,null,0,null,null,0,null,null,0]
[null,"Прыжок в длину с разбега (см)",null,0,null,null,0,null,null,0,null,null,0,null,null,0]
[null,"Или прыжок в длину с места толчком двумя ногами (см)",null,0,null,null,0,null,null,0,null,null,0,null,null,0]
[null,"Плавание 50 м (мин,с)",null,0,null,null,0,null,null,0,null,null,0,null,null,0]
[null,"бег на 60м (с)","13-15 лет",0,null,null,0,null,null,0,null,null,0,null,null,0]
[null,"Бег на 2 км. (мин, с)",null,0,null,null,0,null,null,0,null,null,0,null,null,0]
[null,"Или на 3 км (мин,с) девочки нет",null,0,null,null,0,null,null,0,null,null,0,null,null,0]
[null,"Прыжок в длину с разбега (см)",null,0,null,null,0,null,null,0,null,null,0,null,null,0]
[null,"Или прыжок в длину с места толчком двумя ногами (см)",null,0,null,null,0,null,null,0,null,null,0,null,null,0]
[null,"Плавание 50 м (мин,с)",null,0,null,null,0,null,null,0,null,null,0,null,null,0]
[null,"бег на 100м (с)","16-17 лет",0,null,null,0,null,null,0,null,null,0,null,null,0]
[null,"Бег на 2 км. (мин, с)",null,0,null,null,0,null,null,0,null,null,0,null,null,0]
[null,"Или на 3 км (мин,с) девочки нет",null,0,null,null,0,null,null,0,null,null,0,null,null,0]
[null,"Прыжок в длину с разбега (см)",null,0,null,null,0,null,null,0,null,null,0,null,null,0]
[null,"Или прыжок в длину с места толчком двумя ногами (см)",null,0,null,null,0,null,null,0,null,null,0,null,null,0]
[null,"Плавание 50 м (мин,с)",null,0,null,null,0,null,null,0,null,null,0,null,null,0]
[174,"Челночный бег на 3х10 м (с)","6-8 лет",{"$f":"E927+F927","v":242},123,119,{"$f":"H927+I927","v":228},118,110,{"$f":"K927+L927","v":14},5,9,{"$f":"N927+O927","v":0},0,0,242]
[null,"или бег на 30м (с)",null,{"$f":"E928+F928","v":0},null,null,{"$f":"H928+I928","v":0},null,null,{"$f":"K928+L928","v":0},null,null,{"$f":"N928+O928","v":0},null,null,0]
[null,"Смешанное передвижение (1 км)",null,{"$f":"E929+F929","v":242},123,119,{"$f":"H929+I929","v":220},115,105,{"$f":"K929+L929","v":22},8,14,{"$f":"N929+O929","v":0},0,0,242]
[null,"Прыжок в длину с места толчками двумя ногами (см)",null,{"$f":"E930+F930","v":242},123,119,{"$f":"H930+I930","v":230},116,114,{"$f":"K930+L930","v":12},7,5,{"$f":"N930+O930","v":0},0,0,242]
[null,"Плавание без учета времени(м)",null,0,null,null,0,null,null,0,null,null,0,null,null,0]
[null,"бег на 60м (с)","9-10 лет",175,83,92,153,76,77,22,7,15,0,0,0,175]
[null,"Бег на 1 км. (мин, с)",null,175,83,92,167,80,87,8,3,5,0,0,0,175]
[null,"Прыжок в длину с разбега (см)",null,0,null,null,0,null,null,0,null,null,0,null,null,0]
[null,"Или прыжок в длину с места толчком двумя ногами (см)",null,175,83,92,164,78,86,11,5,6,0,0,0,175]
[null,"Плавание без учета времени(м)",null,0,null,null,0,null,null,0,null,null,0,null,null,0]
[null,"бег на 60м (с)","11-12 лет",187,103,84,170,95,75,17,8,9,0,0,0,187]
[null,"Бег на 1,5 км. (мин, с)",null,187,103,84,167,96,71,20,7,13,0,0,0,187]
[null,"Или на 2 км (мин,с)",null,0,null,null,0,null,null,0,null,null,0,null,null,0]
[null,"Прыжок в длину с разбега (см)",null,0,null,null,0,null,null,0,null,null,0,null,null,0]
[null,"Или прыжок в длину с места толчком двумя ногами (см)",null,187,103,84,172,97,75,15,6,9,0,0,0,187]
[null,"Плавание 50 м (мин,с)",null,0,null,null,0,null,null,0,null,null,0,null,null,0]
[null,"бег на 60м (с)","13-15 лет",198,102,96,185,97,88,13,5,8,0,0,0,198]
[null,"Бег на 2 км. (мин, с)",null,198,102,96,185,98,87,13,4,9,0,0,0,198]
[null,"Или на 3 км (мин,с) девочки нет",null,0,null,null,0,null,null,0,null,null,0,null,null,0]
[null,"Прыжок в длину с разбега (см)",null,0,null,null,0,null,null,0,null,null,0,null,null,0]
[null,"Или прыжок в длину с места толчком двумя ногами (см)",null,198,102,96,185,96,89,13,6,7,0,0,0,198]
[null,"Плавание 50 м (мин,с)",null,0,null,null,0,null,null,0,null,null,0,null,null,0]
[null,"бег на 100м (с)","16-17 лет",69,38,31,65,37,28,4,1,3,0,0,0,69]
[null,"Бег на 2 км. (мин, с)",null,69,38,31,60,33,27,9,5,4,0,0,0,69]
[null,"Или на 3 км (мин,с) девочки нет",null,0,null,null,0,null,null,0,null,null,0,null,null,0]
[null,"Прыжок в длину с разбега (см)",null,0,null,null,0,null,null,0,null,null,0,null,null,0]
[null,"Или прыжок в длину с места толчком двумя ногами (см)",null,69,38,31,63,36,27,6,2,4,0,0,0,69]
[null,"Плавание 50 м (мин,с)",null,0,null,null,0,null,null,0,null,null,0,null,null,0]
[175,"Челночный бег на 3х10 м (с)","6-8 лет",{"$f":"E955+F955","v":0},null,null,{"$f":"H955+I955","v":0},null,null,{"$f":"K955+L955","v":0},null,null,{"$f":"N955+O955","v":0},null,null,0]
[null,"или бег на 30м (с)",null,{"$f":"E956+F956","v":0},null,null,{"$f":"H956+I956","v":0},null,null,{"$f":"K956+L956","v":0},null,null,{"$f":"N956+O956","v":0},null,null,0]
[null,"Смешанное передвижение (1 км)",null,0,null,null,0,null,null,0,null,null,0,null,null,0]
[null,"Прыжок в длину с места толчками двумя ногами (см)",null,0,null,null,0,null,null,0,null,null,0,null,null,0]
[null,"Плавание без учета времени(м)",null,0,null,null,0,null,null,0,null,null,0,null,null,0]
[null,"бег на 60м (с)","9-10 лет",0,null,null,0,null,null,0,null,null,0,null,null,0]
[null,"Бег на 1 км. (мин, с)",null,0,null,null,0,null,null,0,null,null,0,null,null,0]
[null,"Прыжок в длину с разбега (см)",null,0,null,null,0,null,null,0,null,null,0,null,null,0]
[null,"Или прыжок в длину с места толчком двумя ногами (см)",null,0,null,null,0,null,null,0,null,null,0,null,null,0]
[null,"Плавание без учета времени(м)",null,0,null,null,0,null,null,0,null,null,0,null,null,{"$f":"G964+J964+M964","v":0}]
[null,"бег на 60м (с)","11-12 лет",0,null,null,0,null,null,0,null,null,0,null,null,0]
[null,"Бег на 1,5 км. (мин, с)",null,0,null,null,0,null,null,0,null,null,0,null,null,0]
[null,"Или на 2 км (мин,с)",null,0,null,null,0,null,null,0,null,null,0,null,null,0]
[null,"Прыжок в длину с разбега (см)",null,0,null,null,0,null,null,0,null,null,0,null,null,0]
[null,"Или прыжок в длину с места толчком двумя ногами (см)",null,0,null,null,0,null,null,0,null,null,0,null,null,0]
[null,"Плавание 50 м (мин,с)",null,0,null,null,0,null,null,0,null,null,0,null,null,0]
[null,"бег на 60м (с)","13-15 лет",0,null,null,0,null,null,0,null,null,0,null,null,0]
[null,"Бег на 2 км. (мин, с)",null,0,null,null,0,null,null,0,null,null,0,null,null,0]
[null,"Или на 3 км (мин,с) девочки нет",null,0,null,null,0,null,null,0,null,null,0,null,null,0]
[null,"Прыжок в длину с разбега (см)",null,0,null,null,0,null,null,0,null,null,0,null,null,0]
[null,"Или прыжок в длину с места толчком двумя ногами (см)",null,0,null,null,0,null,null,0,null,null,0,null,null,0]
[null,"Плавание 50 м (мин,с)",null,0,null,null,0,null,null,0,null,null,0,null,null,0]
[null,"бег на 100м (с)","16-17 лет",0,null,null,0,null,null,0,null,null,0,null,null,0]
[null,"Бег на 2 км. (мин, с)",null,0,null,null,0,null,null,0,null,null,0,null,null,0]
[null,"Или на 3 км (мин,с) девочки нет",null,0,null,null,0,null,null,0,null,null,0,null,null,0]
[null,"Прыжок в длину с разбега (см)",null,0,null,null,0,null,null,0,null,null,0,null,null,0]
[null,"Или прыжок в длину с места толчком двумя ногами (см)",null,0,null,null,0,null,null,0,null,null,0,null,null,0]
[null,"Плавание 50 м (мин,с)",null,0,null,null,0,null,null,0,null,null,0,null,null,0]
["итого","Челночный бег на 3х10 м (с)","6-8 лет",{"$f":"E983+F983","v":0},null,null,{"$f":"H983+I983","v":0},null,null,{"$f":"K983+L983","v":0},null,null,{"$f":"N983+O983","v":0},null,null,0]
[null,"или бег на 30м (с)",null,{"$f":"E984+F984","v":0},null,null,{"$f":"H984+I984","v":0},null,null,{"$f":"K984+L984","v":0},null,null,{"$f":"N984+O984","v":0},null,null,0]
[null,"Смешанное передвижение (1 км)",null,0,null,null,0,null,null,0,null,null,0,null,null,0]
[null,"Прыжок в длину с места толчками двумя ногами (см)",null,0,null,null,0,null,null,0,null,null,0,null,null,0]
[null,"Плавание без учета времени(м)",null,0,null,null,0,null,null,0,null,null,0,null,null,0]
[null,"бег на 60м (с)","9-10 лет",0,null,null,0,null,null,0,null,null,0,null,null,0]
[null,"Бег на 1 км. (мин, с)",null,0,null,null,0,null,null,0,null,null,0,null,null,0]
[null,"Прыжок в длину с разбега (см)",null,0,null,null,0,null,null,0,null,null,0,null,null,0]
[null,"Или прыжок в длину с места толчком двумя ногами (см)",null,0,null,null,0,null,null,0,null,null,0,null,null,0]
[null,"Плавание без учета времени(м)",null,0,null,null,0,null,null,0,null,null,0,null,null,0]
[null,"бег на 60м (с)","11-12 лет",0,null,null,0,null,null,0,null,null,0,null,null,0]
[null,"Бег на 1,5 км. (мин, с)",null,0,null,null,0,null,null,0,null,null,0,null,null,0]
[null,"Или на 2 км (мин,с)",null,0,null,null,0,null,null,0,null,null,0,null,null,0]
[null,"Прыжок в длину с разбега (см)",null,0,null,null,0,null,null,0,null,null,0,null,null,0]
[null,"Или прыжок в длину с места толчком двумя ногами (см)",null,0,null,null,0,null,null,0,null,null,0,null,null,0]
[null,"Плавание 50 м (мин,с)",null,0,null,null,0,null,null,0,null,null,0,null,null,0]
[null,"бег на 60м (с)","13-15 лет",0,null,null,0,null,null,0,null,null,0,null,null,0]
[null,"Бег на 2 км. (мин, с)",null,0,null,null,0,null,null,0,null,null,0,null,null,0]
[null,"Или на 3 км (мин,с) девочки нет",null,0,null,null,0,null,null,0,null,null,0,null,null,0]
[null,"Прыжок в длину с разбега (см)",null,0,null,null,0,null,null,0,null,null,0,null,null,0]
[null,"Или прыжок в длину с места толчком двумя ногами (см)",null,0,null,null,0,null,null,0,null,null,0,null,null,0]
[null,"Плавание 50 м (мин,с)",null,0,null,null,0,null,null,0,null,null,0,null,null,0]
[null,"бег на 100м (с)","16-17 лет",0,null,null,0,null,null,0,null,null,0,null,null,0]
[null,"Бег на 2 км. (мин, с)",null,0,null,null,0,null,null,0,null,null,0,null,null,0]
[null,"Или на 3 км (мин,с) девочки нет",null,0,null,null,0,null,null,0,null,null,0,null,null,0]
[null,"Прыжок в длину с разбега (см)",null,0,null,null,0,null,null,0,null,null,0,null,null,0]
[null,"Или прыжок в длину с места толчком двумя ногами (см)",null,0,null,null,0,null,null,0,null,null,0,null,null,0]
[null,"Плавание 50 м (мин,с)",null,0,null,null,0,null,null,0,null,null,0,null,null,0]

{"sheet":"программа по зап.1 и 2 табл","index":1,"n_rows":40,"n_cols":58,"rows_kept":40,"merged":[[0,0,2,0],[0,1,0,21],[0,22,0,32],[0,33,0,35],[0,36,0,38],[0,39,0,47],[0,48,0,50],[0,51,0,53],[1,1,2,1],[1,2,1,5],[1,6,1,9],[1,10,1,13],[1,14,1,17],[1,18,1,21],[1,22,2,22],[1,23,1,24],[1,25,1,26],[1,27,1,28],[1,29,1,30],[1,31,1,32],[1,33,2,33],[1,34,2,34],[1,35,2,35],[1,36,2,36],[1,37,2,37],[1,38,2,38],[1,39,1,41],[1,42,1,44],[1,45,1,47],[1,48,2,48],[1,49,2,49],[1,50,2,50],[1,51,2,51],[1,52,2,52],[1,53,2,53],[2,4,2,5],[2,8,2,9],[2,12,2,13],[2,16,2,17],[2,20,2,21]]}
["ОУ","Кол-во учащихся  по ОШ1",{"$nulls":20},"Кол-во учащихся допущенных к сдаче ГТО",{"$nulls":10},"Кол-во учащихся основной группы по физической культуре, допущенных к сдаче норм ГТО",null,null,"Кол-во обучающихся основной группы по физической культуре, приступивших к сдаче нормативов",null,null,"Кол-во учащихся основной группы по физической культуре, справившихся с выполнением нормативов в полном объеме",{"$nulls":8},"Кол-во учащихся основной группы по физической культуре, справившихся с выполнением нормативов не в полном объеме",null,null,"Кол-во учащихся основной группы по физической культуре, не справившихся с выполнением нормативов "]
[null,"всего","6-8 лет",{"$nulls":3},"9-10 лет",{"$nulls":3},"11-12 лет",{"$nulls":3},"13-15 лет",{"$nulls":3},"16-17 лет",{"$nulls":3},"всего","6-8 лет",null,"9-10 лет",null,"11-12 лет",null,"13-15 лет",null,"16-17 лет",null,"всего","М","Д","всего","М","Д","Бронзовый уровень",null,null,"Серебряный уровень",null,null,"Золотой уровень",null,null,"всего","М","Д","всего","М","Д"]
[null,null,"М","Д","проверка",null,"М","Д","проверка",null,"М","Д","проверка",null,"М","Д","проверка",null,"М","Д","проверка",null,null,"М","Д","М","Д","М","Д","М","Д","М","Д",{"$nulls":6},"всего","М","Д","всего","М","Д","всего","М","Д",{"$nulls":6},"всего","м","д"]
[null,{"$f":"C4+D4+G4+H4+K4+L4+O4+P4+S4+T4","v":0},null,null,{"$f":"C4+D4","v":0},{"$f":"X4+Y4","v":0},null,null,{"$f":"G4+H4","v":0},{"$f":"Z4+AA4","v":0},null,null,{"$f":"K4+L4","v":0},{"$f":"AB4+AC4","v":0},null,null,{"$f":"O4+P4","v":0},{"$f":"AD4+AE4","v":0},null,null,{"$f":"S4+T4","v":0},{"$f":"AF4+AG4","v":0},{"$f":"X4+Y4+Z4+AA4+AB4+AC4+AD4+AE4+AF4+AG4","v":0},{"$nulls":10},{"$f":"AI4+AJ4","v":0},{"$f":"X4+Z4+AB4+AD4+AF4","v":0},{"$f":"Y4+AA4+AC4+AE4+AG4","v":0},{"$f":"AL4+AM4","v":0},null,null,{"$f":"AO4+AP4","v":0},null,null,{"$f":"AR4+AS4","v":0},null,null,{"$f":"AU4+AV4","v":0},null,null,{"$f":"AX4+AY4","v":0},null,null,{"$f":"BA4+BB4","v":0},null,null,{"$f":"AN4+AQ4+AT4+AW4+AZ4","v":0},{"$f":"AO4+AR4+AU4+AX4+BA4","v":0},{"$f":"AP4+AS4+AV4+AY4+BB4","v":0}]
[8,{"$f":"C5+D5+G5+H5+K5+L5+O5+P5+S5+T5","v":913},113,76,{"$f":"C5+D5","v":189},{"$f":"X5+Y5","v":136},108,100,{"$f":"G5+H5","v":208},{"$f":"Z5+AA5","v":160},95,96,{"$f":"K5+L5","v":191},{"$f":"AB5+AC5","v":161},107,116,{"$f":"O5+P5","v":223},{"$f":"AD5+AE5","v":170},44,58,{"$f":"S5+T5","v":102},{"$f":"AF5+AG5","v":83},{"$f":"X5+Y5+Z5+AA5+AB5+AC5+AD5+AE5+AF5+AG5","v":710},88,48,86,74,83,78,90,80,35,48,{"$f":"AI5+AJ5","v":710},{"$f":"X5+Z5+AB5+AD5+AF5","v":382},328,{"$f":"AL5+AM5","v":710},382,328,{"$f":"AO5+AP5","v":213},123,90,{"$f":"AR5+AS5","v":103},65,38,{"$f":"AU5+AV5","v":24},12,12,{"$f":"AX5+AY5","v":239},113,126,{"$f":"BA5+BB5","v":131},69,62,{"$f":"AN5+AQ5+AT5+AW5+AZ5","v":710},{"$f":"AO5+AR5+AU5+AX5+BA5","v":382},{"$f":"AP5+AS5+AV5+AY5+BB5","v":328}]
[11,{"$f":"C6+D6+G6+H6+K6+L6+O6+P6+S6+T6","v":382},53,36,{"$f":"C6+D6","v":89},{"$f":"X6+Y6","v":80},38,52,{"$f":"G6+H6","v":90},{"$f":"Z6+AA6","v":78},48,38,{"$f":"K6+L6","v":86},{"$f":"AB6+AC6","v":76},37,33,{"$f":"O6+P6","v":70},{"$f":"AD6+AE6","v":56},27,20,{"$f":"S6+T6","v":47},{"$f":"AF6+AG6","v":41},{"$f":"X6+Y6+Z6+AA6+AB6+AC6+AD6+AE6+AF6+AG6","v":331},47,33,33,45,43,33,31,25,25,16,{"$f":"AI6+AJ6","v":331},{"$f":"X6+Z6+AB6+AD6+AF6","v":179},{"$f":"Y6+AA6+AC6+AE6+AG6","v":152},{"$f":"AL6+AM6","v":331},179,152,{"$f":"AO6+AP6","v":109},60,49,{"$f":"AR6+AS6","v":208},113,95,{"$f":"AU6+AV6","v":1},1,0,{"$f":"AX6+AY6","v":13},5,8,{"$f":"BA6+BB6","v":0},0,0,{"$f":"AN6+AQ6+AT6+AW6+AZ6","v":331},{"$f":"AO6+AR6+AU6+AX6+BA6","v":179},{"$f":"AP6+AS6+AV6+AY6+BB6","v":152}]
[15,610,95,71,{"$f":"C7+D7","v":166},{"$f":"X7+Y7","v":132},85,47,{"$f":"G7+H7","v":132},84,58,61,{"$f":"K7+L7","v":119},86,67,79,{"$f":"O7+P7","v":146},116,26,21,{"$f":"S7+T7","v":47},19,437,74,58,52,32,43,43,50,66,9,10,{"$f":"AI7+AJ7","v":437},{"$f":"X7+Z7+AB7+AD7+AF7","v":228},{"$f":"Y7+AA7+AC7+AE7+AG7","v":209},{"$f":"AL7+AM7","v":415},220,195,{"$f":"AO7+AP7","v":145},67,78,{"$f":"AR7+AS7","v":131},75,56,{"$f":"AU7+AV7","v":28},20,8,{"$f":"AX7+AY7","v":111},58,53,{"$f":"BA7+BB7","v":0},0,0,415,{"$f":"AO7+AR7+AU7+AX7+BA7","v":220},{"$f":"AP7+AS7+AV7+AY7+BB7","v":195}]
[20,579,87,83,170,139,87,71,158,89,49,41,90,78,57,59,116,92,16,29,45,30,428,69,70,42,47,34,44,47,45,11,19,428,203,225,455,230,225,124,57,67,{"$f":"AR8+AS8","v":186},90,96,111,52,59,7,4,3,0,0,0,428,203,225]
[22,474,46,52,98,71,39,49,88,67,53,48,101,58,61,73,134,65,25,28,53,28,289,41,30,35,32,37,21,39,26,18,10,289,170,119,289,170,119,87,48,39,51,32,19,56,36,20,95,54,41,0,0,0,289,170,119]
[29,96,21,28,49,27,22,22,44,35,2,1,3,2,0,0,0,0,0,0,0,0,64,10,17,14,21,2,0,0,0,0,0,64,26,38,64,26,38,9,4,5,15,7,8,8,5,3,28,10,18,14,6,8,74,32,42]
[47,372,37,46,83,78,36,33,69,65,44,44,88,77,52,49,101,98,16,15,31,30,348,34,44,45,20,43,34,50,48,15,15,348,187,161,348,187,161,89,48,41,126,62,64,108,67,41,17,6,11,8,4,4,348,187,161]
[58,296,24,14,38,36,32,13,45,38,41,24,65,49,65,43,108,85,19,21,40,27,235,24,12,25,13,32,17,50,35,12,15,235,143,92,235,143,92,141,85,56,70,47,23,3,2,1,0,0,0,21,9,12,235,143,92]
[72,873,88,95,183,19,82,85,167,10,100,91,191,9,105,117,222,17,42,68,110,4,59,5,14,4,6,5,4,6,11,0,4,59,20,39,59,20,39,59,20,39,0,0,0,0,0,0,0,0,0,0,0,0,59,20,39]
[79,439,46,32,78,67,50,44,94,80,54,39,93,59,61,55,116,86,28,30,58,42,334,39,28,44,36,38,21,51,35,15,27,334,187,147,334,187,147,116,68,48,52,28,24,20,12,8,88,40,48,58,26,32,334,174,160,"ОШИБКИ"]
[84,540,44,58,102,96,49,64,113,107,54,74,128,119,69,80,149,137,19,29,48,47,506,44,52,47,60,51,68,64,73,19,28,506,225,281,506,225,281,190,77,113,263,124,139,51,22,29,2,2,0,0,0,0,506,{"$f":"AO15+AR15+AU15+AX15+BA15","v":225},{"$f":"AP15+AS15+AV15+AY15+BB15","v":281}]
[86,0,null,null,0,0,null,null,0,0,null,null,0,0,null,null,0,0,null,null,0,0,0,{"$nulls":10},0,0,0,0,null,null,0,null,null,0,null,null,0,null,null,0,null,null,0,null,null,0,{"$f":"AO16+AR16+AU16+AX16+BA16","v":0},{"$f":"AP16+AS16+AV16+AY16+BB16","v":0}]
[90,0,null,null,0,0,null,null,0,0,null,null,0,0,null,null,0,0,null,null,0,0,0,{"$nulls":10},0,0,0,0,null,null,0,null,null,0,null,null,0,null,null,0,null,null,0,null,null,0,0,0]
[93,0,null,null,0,0,null,null,0,0,null,null,0,0,null,null,0,0,null,null,0,0,0,{"$nulls":10},0,0,0,0,null,null,0,null,null,0,null,null,0,null,null,0,null,null,0,null,null,0,0,0]
[101,562,57,64,121,117,69,55,124,119,59,49,108,96,77,72,149,117,28,32,60,45,494,54,63,67,52,50,46,63,54,25,20,494,259,235,494,259,235,179,89,90,109,65,44,50,30,20,139,70,69,17,5,12,494,259,235]
[108,97,14,11,25,0,15,8,23,0,5,6,11,0,23,15,38,0,0,0,0,0,0,{"$nulls":10},0,0,0,0,null,null,0,null,null,0,null,null,0,null,null,0,null,null,0,null,null,0,0,0]
[110,578,78,42,120,103,57,43,100,94,54,41,95,93,96,97,193,180,35,35,70,53,523,69,34,54,40,48,45,89,91,31,22,523,291,232,523,291,232,179,96,83,181,94,87,114,82,32,40,19,21,9,0,9,523,291,232]
[111,656,83,84,167,124,72,53,125,96,73,38,111,41,90,105,195,167,37,21,58,51,479,64,60,58,38,28,13,72,95,32,19,479,254,225,445,234,211,198,102,96,105,73,32,44,37,7,98,45,53,0,0,0,445,257,188]
[121,0,null,null,0,0,null,null,0,0,null,null,0,0,null,null,0,0,null,null,0,0,0,{"$nulls":10},0,0,0,0,null,null,0,null,null,0,null,null,0,null,null,0,null,null,0,null,null,0,0,0]
[124,419,42,54,96,63,46,36,82,67,47,42,89,63,63,58,121,84,14,17,31,21,298,30,33,38,29,34,29,44,40,8,13,298,154,144,276,145,131,44,25,19,142,72,70,71,38,33,12,7,5,7,3,4,276,145,131]
[125,0,null,null,0,0,null,null,0,0,null,null,0,0,null,null,0,0,null,null,0,0,0,{"$nulls":10},0,0,0,0,null,null,0,null,null,0,null,null,0,null,null,0,null,null,0,null,null,0,0,0]
[126,561,66,52,{"$f":"C26+D26","v":118},{"$f":"X26+Y26","v":101},67,56,{"$f":"G26+H26","v":123},{"$f":"Z26+AA26","v":78},60,62,122,74,62,80,142,62,27,29,56,39,354,50,51,41,37,31,43,27,35,18,21,354,167,187,354,167,187,102,60,42,159,68,91,93,39,54,0,0,0,0,0,0,354,167,187]
[140,403,43,53,96,54,48,47,95,43,39,41,80,35,24,35,59,29,30,43,73,13,174,23,31,18,25,17,18,13,16,6,7,174,77,97,174,77,97,101,48,53,24,11,13,12,8,4,25,9,16,12,1,11,174,77,97]
[141,1032,103,114,217,212,117,126,243,221,104,117,221,192,120,143,263,248,45,43,88,79,952,100,112,99,122,96,96,120,128,43,36,952,458,494,952,458,494,290,126,164,595,294,301,50,30,20,17,8,9,0,0,0,952,458,494]
[144,1019,112,116,228,157,101,122,223,130,112,119,231,161,114,125,239,140,32,66,98,38,626,80,77,75,55,81,80,75,65,12,26,626,323,303,626,323,303,163,89,74,122,72,50,57,31,26,216,95,121,68,36,32,626,323,303]
[149,0,null,null,0,0,null,null,0,0,null,null,0,0,null,null,0,0,null,null,0,0,0,{"$nulls":10},0,0,0,0,null,null,0,null,null,0,null,null,0,null,null,0,null,null,0,null,null,0,0,0]
[156,0,null,null,0,0,null,null,0,0,null,null,0,0,null,null,0,0,null,null,0,0,0,{"$nulls":10},0,0,0,0,null,null,0,null,null,0,null,null,0,null,null,0,null,null,0,null,null,0,0,0]
[159,0,null,null,0,0,null,null,0,0,null,null,0,0,null,null,0,0,null,null,0,0,0,{"$nulls":10},0,0,0,0,null,null,0,null,null,0,null,null,0,null,null,0,null,null,0,null,null,0,0,0]
[161,0,null,null,0,0,null,null,0,0,null,null,0,0,null,null,0,0,null,null,0,0,0,{"$nulls":10},0,0,0,0,null,null,0,null,null,0,null,null,0,null,null,0,null,null,0,null,null,0,0,0]
[166,332,38,41,79,65,47,31,78,60,49,40,89,65,39,19,58,48,15,13,28,17,255,34,31,33,27,41,24,32,16,8,9,255,148,107,255,148,107,49,30,19,160,87,73,36,24,12,10,7,3,0,0,0,255,148,107]
[167,1180,126,135,261,227,122,142,264,211,113,121,234,205,143,153,296,260,60,65,125,109,1012,104,123,98,113,99,106,135,125,52,57,1012,488,524,1012,488,524,294,133,161,373,178,195,210,118,92,101,46,55,34,13,21,1012,488,524]
[169,0,null,null,0,0,null,null,0,0,null,null,0,0,null,null,0,0,null,null,0,0,0,{"$nulls":10},0,0,0,0,null,null,0,null,null,0,null,null,0,null,null,0,null,null,0,null,null,0,0,0]
[171,0,null,null,0,0,null,null,0,0,null,null,0,0,null,null,0,0,null,null,0,0,0,{"$nulls":10},0,0,0,0,null,null,0,null,null,0,null,null,0,null,null,0,null,null,0,null,null,0,0,0]
[174,962,131,134,265,242,93,99,192,175,112,90,{"$f":"K38+L38","v":202},{"$f":"AB38+AC38","v":187},111,110,{"$f":"O38+P38","v":221},{"$f":"AD38+AE38","v":198},42,40,{"$f":"S38+T38","v":82},{"$f":"AF38+AG38","v":69},{"$f":"X38+Y38+Z38+AA38+AB38+AC38+AD38+AE38+AF38+AG38","v":871},123,119,83,92,103,84,102,96,38,31,{"$f":"AI38+AJ38","v":871},{"$f":"X38+Z38+AB38+AD38+AF38","v":449},{"$f":"Y38+AA38+AC38+AE38+AG38","v":422},{"$f":"AL38+AM38","v":871},449,422,450,211,239,262,162,100,87,49,38,72,27,45,0,0,null,{"$f":"AN38+AQ38+AT38+AW38+AZ38","v":871},{"$f":"AO38+AR38+AU38+AX38+BA38","v":449},{"$f":"AP38+AS38+AV38+AY38+BB38","v":422}]
[175,0,null,null,0,0,null,null,0,0,null,null,0,0,null,null,0,0,null,null,0,0,0,{"$nulls":10},0,0,0,0,null,null,0,null,null,0,null,null,0,null,null,0,null,null,0,null,null,0,0,0]
["итого",13375,{"$f":"SUM(C5:C39)","v":1547},1491,{"$f":"C40+D40","v":3038},{"$f":"X40+Y40","v":2346},1482,1398,{"$f":"G40+H40","v":2880},{"$f":"Z40+AA40","v":2107},1425,1323,{"$f":"K40+L40","v":2748},{"$f":"AB40+AC40","v":1986},1643,1716,{"$f":"O40+P40","v":3359},{"$f":"AD40+AE40","v":2455},627,723,{"$f":"S40+T40","v":1350},{"$f":"AF40+AG40","v":885},{"$f":"X40+Y40+Z40+AA40+AB40+AC40+AD40+AE40+AF40+AG40","v":9779},1206,1140,1091,1016,1039,947,1250,1205,432,453,{"$f":"AI40+AJ40","v":9779},{"$f":"X40+Z40+AB40+AD40+AF40","v":5018},{"$f":"Y40+AA40+AC40+AE40+AG40","v":4761},{"$f":"AL40+AM40","v":9728},5008,4720,{"$f":"AO40+AP40","v":3331},1666,1665,3437,1819,1618,1234,715,519,1330,625,705,379,172,207,{"$f":"AN40+AQ40+AT40+AW40+AZ40","v":9711},{"$f":"AO40+AR40+AU40+AX40+BA40","v":4997},{"$f":"AP40+AS40+AV40+AY40+BB40","v":4714}]